{"text_format":"1","workbook":"xlsx","n_sheets":19,"sheets":["Planilha1","Planilha","Validação de dados","icones","Tecnicas e Pop´s","Descrição de Pop´s","Integração","Treinamentos","Geral","hplc","Espectro","Karl fischer","Agua","Titulação","Peso Medio","Validação","Teor A.","Perfil","Perda S."],"not_rendered":{"charts":0,"images":132,"macros":1,"external_links":0,"defined_names":0,"comments":0,"pivot_tables":0},"unopened":[],"bounds":{"document_bytes":16777216,"sheet_cells":100000,"rows_first":2000,"rows_last":500,"rows_between":2000,"halvings":0,"cell_chars":16384,"cell_head_chars":4096},"cells_cut":0,"cells_raw":0,"read":"whole","date_system":"1900"}

{"sheet":"Planilha1","index":0,"n_rows":32,"n_cols":14,"rows_kept":32,"cut":false,"hidden":false,"merged":[]}
[]
[null,"alterações/ajustes que fiz desde a planilha Geral até a planilha Perda S.:",null,null,null,null,null,null,null,null,null,null,null,"funcionamento da macro, cujo código está no módulo de EstaPasta_de_trabalho"]
[null,"1. excluí uma linha acima do primeiro nome"]
[null,"2. centralizei os retângulos que contém os nomes em relação às linhas verdes",null,null,null,null,null,null,null,null,null,null,null,"Em qualquer das planilhas, da planilha Geral até Perda S., ao ser inserido o texto"]
[null,"3. redimensionei as alturas dos shapes (retângulos) que contém os nomes dos colaboradores (todos com 1,24)",null,null,null,null,null,null,null,null,null,null,null,"\"Trein. Finalizado\", via Validação existente nas células, e se toda aquela linha estiver"]
[null,"4. excluí uma terceira linha entre os shapes com os nomes/entre as linhas verdes, onde havia essa terceira linha",null,null,null,null,null,null,null,null,null,null,null,"preenchida com o citado texto, então a macro irá lançar a data do dia na planilha"]
[null,"5. refiz a Validação de Dados de todas as planilhas com base na planilha Validação de dados!D5:D6",null,null,null,null,null,null,null,null,null,null,null," Treinamentos, na célula correspondente ao colaborador e ao treinamento."]
[null,"6. removi a Validação de células não envolvidas no processo"]
[null,null,null,null,null,null,null,null,null,null,null,null,null,"Ao final da execução da macro será exibida uma Caixa de Mensagem para informar"]
[null,"alterações que fiz na planilha Treinamentos:",null,null,null,null,null,null,null,null,null,null,null,"o endereço da célula em que a data foi inserida."]
[null,"7. nos shapes corrigi o nome de Erika para Éricka (acento e a letra C) conforme está nas demais planilhas"]
[null,"8. ajustei a altura das linhas para a medida 15"]
[null,"9. removi espaço no final do nome Caroline (11 ocorrências)"]
[null,"10. em todas as células correspondentes a cada colaborador, em cada treinamento, no lugar da fórmula abaixo"]
[null,"=SE(Geral!H13<>\"Trein. Finalizado\";\"Em Treinamento\";SE(Geral!J13<>\"Trein. Finalizado\";\"Em Treinamento\";SE(Geral!L13<>\"Trein. Finalizado\";\"Em Treinamento\";SE(Geral!N13<>\"Trein. Finalizado\";\"Em Treinamento\";SE(Geral!P13<>\"Trein. Finalizado\";\"Em Treinamento\";SE(Geral!R13<>\"Trein. Finalizado\";\"Em Treinamento\";SE(Geral!T13<>\"Trein. Finalizado\";\"Em Treinamento\";SE(Geral!V13<>\"Trein. Finalizado\";\"Em Treinamento\";SE(Geral!X13<>\"Trein. Finalizado\";\"Em Treinamento\";SE(Geral!Z13<>\"Trein. Finalizado\";\"Em Treinamento\";SE(Geral!AB13<>\"Trein. Finalizado\";\"Em Treinamento\";SE(Geral!AD13<>\"Trein. Finalizado\";\"Em Treinamento\";SE(Geral!AF13<>\"Trein. Finalizado\";\"Em Treinamento\";SE(Geral!AH13<>\"Trein. Finalizado\";\"Em Treinamento\";SE(Geral!AJ13<>\"Trein. Finalizado\";\"Em Treinamento\";\"Treinamento Finalizado\")))))))))))))))"]
[null,"coloquei essa abaixo"]
[null,"=SE(CONT.SE(Geral!F13:AM13;\"Trein. Finalizado\")=17;\"Treinamento Finalizado\";SE(CONTAR.VAZIO(Geral!F13:AM13)=34;\"* * * * *\";\"Em Treinamento\"))"]
[null,"11. deletei as fórmulas que continham a função HOJE(), essas são as células"]
[null,"que receberão a data inserida pela macro(células com preenchimento na cor preta)"]
[]
[null,"alterações que fiz na planilha Validação"]
[null,"12. removi um espaço no final do nome da planilha"]
[]
[null,"Fórmulas na Planilha Treinamentos"]
[null,"situação das células nas planilhas Geral até Perda por Secagem",null,null,null,null,null,null,"resultado da fórmula",null,">>>","=SE(CONT.SE(Geral!F13:AM13;\"Trein. Finalizado\")=17;\"Treinamento Finalizado\";SE(CONTAR.VAZIO(Geral!F13:AM13)=34;\"* * * * *\";\"Em Treinamento\"))"]
[null,"todas preenchidas com Trein. Finalizado",null,null,null,null,null,null,"Treinamento Finalizado"]
[null,"todas preenchidas com Em Treinamento",null,null,null,null,null,null,"Em Treinamento"]
[null,"todas vazias",null,null,null,null,null,null,"* * * * *"]
[null,"algumas Trein. Finalizado e as demais Em Treinamento",null,null,null,null,null,null,"Em Treinamento"]
[null,"algumas Trein. Finalizado e as demais vazias",null,null,null,null,null,null,"Em Treinamento"]
[null,"algumas Em Treinamento e as demais vazias",null,null,null,null,null,null,"Em Treinamento"]
[null,"algumas Trein. Finalizado, algumas Em Treinamento e as demais vazias",null,null,null,null,null,null,"Em Treinamento"]

{"sheet":"Planilha","index":1,"n_rows":0,"n_cols":0,"rows_kept":0,"cut":false,"hidden":false,"merged":[[0,0,4,0],[0,2,4,19]]}

{"sheet":"Validação de dados","index":2,"n_rows":15,"n_cols":4,"rows_kept":15,"cut":false,"hidden":false,"merged":[[2,0,2,1]]}
[]
[null,null,null,"As duas células abaixo são as fontes"]
["Pop´s Geral",null,null,"para a Validação de Dados aplicada"]
[null,null,null,"nas planilhas Geral até Perda S."]
["POP TEC 002","POP EQ 090",null,"Em Treinamento"]
["POP TEC 003","POP EQ 099",null,"Trein. Finalizado"]
["POP TEC 010","POP EQ 115"]
["POP TEC 018","xxx"]
["POP TEC 019","xxx"]
["POP TEC 020","xxx"]
["POP TEC 070","xxx"]
["POP TEC 077","xxx"]
["POP TEC 079","xxx"]
["POP TEC 101","xxx"]
[" POP TEC 104                                 ","xxx"]

{"sheet":"icones","index":3,"n_rows":14,"n_cols":14,"rows_kept":14,"cut":false,"hidden":false,"merged":[]}
[]
[]
[]
[]
[]
[]
[null,null,null,null,null,null,null,null,null,null,null,null,null,"titulaç;ao"]
[]
[]
[]
[]
[]
[]
[null,null,null,{"$f":"icones!P2=IF(Geral!F13<>\"Trein. Finalizado\",\"Em treinamento\",IF(Geral!H13<>\"Trein. Finalizado\",\"Em treinamento\",IF(Geral!L13<>\"Trein. Finalizado\",\"Em treinamento\",IF(Geral!P13<>\"Trein. Finalizado\",\"Em Treinamento\",IF(Geral!R13<>\"Trein. Finalizado\",\"Em treinamento\",IF(Geral!T13<>\"Trein. Finalizado\",\"Em Treinamento\",IF(Geral!V13<>\"Trein. Finalizado\",\"Em Treinamento\",IF(Geral!X13<>\"Trein. Finalizado\",\"Em Treinamento\",IF(Geral!Z13<>\"Trein. Finalizado\",\"Em treinamento\",IF(Geral!Z13<>\"Trein. Finalizado\",\"Em Treinamento\",IF(Geral!AB13<>\"Trein. Finalizado\",\"Em treinamento\",IF(Geral!AD13<>\"Trein. Finalizado\",\"Em Treinamento\",IF(Geral!AD13<>\"Trein. Finalizado\",\"Em treinamento\",IF(Geral!AF13<>\"Trein. Finalizado\",\"Em treinamento\",IF(Geral!AJ13<>\"Trein. Finalizado\",\"Em Treinamento\",IF(Geral!AL13<>\"Trein. Finalizado\",\"Em treinamento\",\"Apto\"))))))))))))))))","v":false}]

{"sheet":"Tecnicas e Pop´s","index":4,"n_rows":72,"n_cols":13,"rows_kept":72,"cut":false,"hidden":false,"merged":[[0,0,4,0],[43,11,47,11],[50,11,52,11],[0,2,4,53],[55,11,61,11]]}
[]
[]
[]
[]
[]
[]
[]
[]
[]
[]
[]
[]
[]
[]
[]
[null,null,null,null,null,null,null,null,null,null,null,"POP TEC 001","POP EQ 017"]
[null,null,null,"                                Manual do Sistema de Gestão da Qualidade",null,null,null,null,null,null,null,"POP TEC 065","xxx"]
[null,null,null,"                                Manual do laboratorio"]
[null,null,null,null,null,"PRO 01 Controle de Documentos e Registros"]
[null,null,null,null,null,"PRO 02  Recursos Humanos"]
[null,null,null,null,null,"PRO 03 Manutenção e Infraestrutura"]
[null,null,null,null,null,"PRO 04 Vendas"]
[null,null,null,null,null,"PRO 05 Aquisição",null,null,null,null,null,"POP TEC 001","POP EQ 001"]
[null,null,null,null,null,"PRO 06 Ensaio de Amostras",null,null,null,null,null,"xxx","POP EQ 021"]
[null,null,null,null,null,"PRO 07 Calibração e Qualificação de Equipamentos"]
[null,null,null,null,null,"PRO 08 Auditoria Interna"]
[null,null,null,null,null,"PRO 09 Controle de Saídas Não Conforme"]
[null,null,null,null,null,"PRO 10 Ação Corretiva / Preventiva e Mehorias"]
[null,null,null,null,null,"PRO 11Confidencialidade e Imparcialidade",null,null,null,null,null,"POP TEC 014","POP EQ 016"]
[null,null,null,null,null,"PRO 12 Gestão de Riscos e Oportunidades",null,null,null,null,null,"POP TEC 091","POP EQ 021"]
[null,null,null,null,null,"PRO 13 Garantia da Validade dos Resultados",null,null,null,null,null,"POP TEC 102","POP EQ 098"]
[]
[]
[]
[null,null,null,null,null,"POP TEC 065","POP EQ 115"]
[null,null,null,null,null,"POP TEC 078","xxx"]
[null,null,null,null,null,null,null,null,null,null,null,"POP TEC 001","POP EQ 001"]
[null,null,null,null,null,null,null,null,null,null,null,"xxx","POP EQ 021"]
[]
[]
[]
[]
[null,null,null,null,null,"POP TEC 001","POP EQ 082"]
[null,null,null,null,null,"POP TEC 111","xxx",null,null,null,null,"POP TEC 112","POP EQ 001"]
[null,null,null,null,null,null,null,null,null,null,null,null,"POP EQ 004"]
[null,null,null,null,null,null,null,null,null,null,null,null,"POP EQ 021"]
[null,null,null,null,null,null,null,null,null,null,null,null,"POP EQ 076"]
[]
[]
[null,null,null,null,null,"  POP TEC 113","POP EQ 008"]
[null,null,null,null,null,"POP TEC 132","POP EQ 083",null,null,null,null,"XXX","POP EQ 001"]
[null,null,null,null,null,null,null,null,null,null,null,null,"POP EQ 007"]
[null,null,null,null,null,null,null,null,null,null,null,null,"POP EQ 021"]
[]
[]
[null,null,null,null,null,null,null,null,null,null,null,"POP TEC 131"]
[null,null,null,null,null," POP TEC 066","POP EQ 001"]
[null,null,null,null,null,"POP TEC 080","POP EQ 021",null,null,null,null,null,"POP EQ 116"]
[null,null,null,null,null,null,null,null,null,null,null,null,"POP EQ 117"]
[]
[]
[null,null,null,null,null,"POP TEC 002","POP EQ 090"]
[null,null,null,null,null,"POP TEC 003","POP EQ 099"]
[null,null,null,null,null,"POP TEC 010","POP EQ 115"]
[null,null,null,null,null,"POP TEC 018","xxx"]
[null,null,null,null,null,"POP TEC 019","xxx"]
[null,null,null,null,null,"POP TEC 020","xxx"]
[null,null,null,null,null,"POP TEC 070","xxx"]
[null,null,null,null,null,"POP TEC 077","xxx"]
[null,null,null,null,null,"POP TEC 079","xxx"]
[null,null,null,null,null,"POP TEC 101","xxx"]
[null,null,null,null,null,"POP TEC 104                                 ","xxx"]

{"sheet":"Descrição de Pop´s","index":5,"n_rows":40,"n_cols":18,"rows_kept":40,"cut":false,"hidden":false,"merged":[[35,3,35,13],[36,3,36,13],[37,3,37,13],[30,3,30,13],[31,3,31,13],[32,3,32,13],[33,3,33,13],[34,3,34,13],[39,3,39,13],[38,3,38,13],[16,3,16,13],[17,3,17,13],[18,3,18,13],[19,3,19,13],[20,3,20,13],[21,3,21,13],[22,3,22,13],[23,3,23,13],[24,3,24,13],[25,3,25,13],[26,3,26,13],[27,3,27,13],[28,3,28,13],[29,3,29,13],[0,0,4,0],[0,2,4,42],[6,2,11,11],[6,16,11,28],[13,17,13,27],[14,17,14,27],[15,17,15,27],[13,3,13,13],[14,3,14,13],[15,3,15,13]]}
[]
[]
[]
[]
[]
[]
[null,null,"                  Pop´s Técnicos ",null,null,null,null,null,null,null,null,null,null,null,null,null,"     Pop´s Equipamentos "]
[]
[]
[]
[]
[]
[]
[null,null,"POP TEC - 001","Preparação e Controle de Soluções Reagente e Fases-Móveis do Laboratório.",null,null,null,null,null,null,null,null,null,null,null,null,"POP EQ - 001","Utilização e Limpeza da Balança Analítica Prix Série AS"]
[null,null,"POP TEC - 002","Recepção, armazenamento controle e utilização de Reagentes analiticos ",null,null,null,null,null,null,null,null,null,null,null,null,"POP EQ - 004","Utilização e Limpeza do Aparelho de Dissolução"]
[null,null,"POP TEC - 003","Registro de Dados Analíticos pelo Controle de Qualidade",null,null,null,null,null,null,null,null,null,null,null,null,"POP EQ - 007","Utilização e Limpeza Estufa de Secagem e Esterilização "]
[null,null,"POP TEC - 010","Verificação e Registros Diários de Temperatura e Umidade Relativa do Ar",null,null,null,null,null,null,null,null,null,null,null,null,"POP EQ - 008","Utilização e Limpeza do PHMETRO Quimis Q400A / Q400AS"]
[null,null,"POP TEC - 013","Preparação, Padronização e Controle de Materiais de Referência ",null,null,null,null,null,null,null,null,null,null,null,null,"POP EQ - 016","Utilização e Limpeza HPLC MERCK (DAD e UV)"]
[null,null,"POP TEC - 014","Procedimento para Validação de Métodos Analíticos",null,null,null,null,null,null,null,null,null,null,null,null,"POP EQ - 016","Utilização e Limpeza HPLC MERCK (DAD e UV)"]
[null,null,"POP TEC - 018","Métodos Analíticos",null,null,null,null,null,null,null,null,null,null,null,null,"POP EQ - 017","Utilização e Limpeza Espectrofotômetro "]
[null,null,"POP TEC - 019","Preenchimento de Log Book",null,null,null,null,null,null,null,null,null,null,null,null,"POP EQ - 021","Utilização e Limpeza da Balança Analítica Shimadzu Modelo AX 200 e AY 220"]
[null,null,"POP TEC - 020","Descarte de Resíduos",null,null,null,null,null,null,null,null,null,null,null,null,"POP EQ - 076 ","Utilização e Limpeza do Aparelho de Dissolução Quimis"]
[null,null,"POP TEC - 065","Método Geral para Uniformidade de Conteúdo",null,null,null,null,null,null,null,null,null,null,null,null,"POP EQ - 082","Utilização e Limpeza do Karl Fisher"]
[null,null,"POP TEC - 066","Método Geral para Determinação de Peso Médio",null,null,null,null,null,null,null,null,null,null,null,null,"POP EQ - 083","Utilização e Limpeza do Condutivímetro Hanna HI 98192"]
[null,null,"POP TEC - 070","Método Geral para Resultado Fora de Especificação",null,null,null,null,null,null,null,null,null,null,null,null,"POP EQ - 084","Utilização e Limpeza do Condutivímetro INOLAB COND 7110"]
[null,null,"POP TEC - 077","Liberação de Água do Ultrapurificador GEHAKA MS 2000",null,null,null,null,null,null,null,null,null,null,null,null,"POP EQ - 090","Utilização e Limpeza  do Dessecador DRY Box"]
[null,null,"POP TEC - 078","Manutenção Coluna HPLC.",null,null,null,null,null,null,null,null,null,null,null,null,"POP EQ - 098","Utilização e Limpeza do HPLC MERCK CHROMASTER"]
[null,null,"POP TEC - 079","Verificação e Registro de Temperatura da Geladeira",null,null,null,null,null,null,null,null,null,null,null,null,"POP EQ - 099","Utilização e Limpeza do Ultrapurificador GEHAKA MS 2000"]
[null,null,"POP TEC - 080","Critérios de Aceitação e Verificação Diárias das Balanças Analiticas",null,null,null,null,null,null,null,null,null,null,null,null,"POP EQ - 115","Utilização e Limpeza da Lavadora Ultrasom SONITOP 425-A"]
[null,null,"POP TEC - 091","Cálculo de Incerteza de Medição",null,null,null,null,null,null,null,null,null,null,null,null,"POP EQ - 116","Utilização e Limpeza do Friabilometro"]
[null,null,"POP TEC - 100","Limpeza do Laboratório",null,null,null,null,null,null,null,null,null,null,null,null,"POP EQ - 117","Utilização e Limpeza do Durômetro"]
[null,null,"POP TEC - 101","Método de Arredondamento",null,null,null,null,null,null,null,null,null,null,null,null,"POP EQ - 118","Utilização e Limpeza do Condutivimetro  HANNA HI 98309"]
[null,null,"POP TEC - 102","Planejamento e Execusão para Pesquisa e Desenvolvimento "]
[null,null,"POP TEC - 104","Utilização de Pipetas de Vidro, Volumétrica e Graduada"]
[null,null,"POP TEC - 111","Método Geral de Karl Fisher"]
[null,null,"POP TEC - 112","Método Geral de Teste de Dissolução"]
[null,null,"POP TEC - 113","Método Geral de Condutividade da Água"]
[null,null,"POP TEC - 131","Método Geral de Determinação de Resistencia Mecânica em comprimidos"]
[null,null,"POP TEC - 132","Método Geral de Medição de pH"]
[null,null,"POP TEC - 133","Coletas de amostras - Veterinárias"]

{"sheet":"Integração","index":6,"n_rows":22,"n_cols":19,"rows_kept":22,"cut":false,"hidden":false,"merged":[[10,18,11,21],[14,18,15,21],[17,18,18,21],[0,0,4,0],[10,13,11,16],[14,13,15,16],[17,13,18,16],[10,3,11,6],[14,3,15,6],[17,3,18,6],[10,8,11,11],[0,2,4,43],[14,8,15,11],[17,8,18,11],[21,18,22,21],[21,8,22,11],[21,13,22,16],[21,3,22,6],[29,18,30,21],[29,3,30,6],[25,8,26,11],[29,8,30,11],[25,13,26,16],[29,13,30,16],[25,18,26,21],[25,3,26,6]]}
[]
[]
[]
[]
[]
[]
[]
[]
[]
[]
[null,null,null,"Treinamento Finalizado",null,null,null,null,"Treinamento Finalizado",null,null,null,null,"Treinamento Finalizado",null,null,null,null,"Treinamento Finalizado"]
[]
[]
[]
[null,null,null,"Treinamento Finalizado",null,null,null,null,"Treinamento Finalizado",null,null,null,null,"Treinamento Finalizado",null,null,null,null,"Treinamento Finalizado"]
[]
[]
[null,null,null,"Treinamento Finalizado",null,null,null,null,"Treinamento Finalizado",null,null,null,null,"Treinamento Finalizado",null,null,null,null,"Treinamento Finalizado"]
[]
[]
[]
[null,null,null,"Treinamento Finalizado",null,null,null,null,"Treinamento Finalizado",null,null,null,null,"Treinamento Finalizado",null,null,null,null,"Treinamento Finalizado"]

{"sheet":"Treinamentos","index":7,"n_rows":45,"n_cols":73,"rows_kept":45,"cut":false,"hidden":false,"merged":[[0,0,4,0],[42,72,43,73],[47,18,48,19],[49,18,49,19],[54,9,54,10],[54,12,54,13],[52,15,53,16],[54,15,54,16],[52,18,53,19],[54,18,54,19],[49,9,49,10],[49,12,49,13],[47,15,48,16],[49,15,49,16],[37,18,38,19],[39,18,39,19],[42,9,43,10],[44,9,44,10],[42,12,43,13],[44,12,44,13],[42,15,43,16],[44,15,44,16],[42,18,43,19],[44,18,44,19],[37,9,38,10],[39,9,39,10],[37,12,38,13],[39,12,39,13],[37,15,38,16],[39,15,39,16],[27,18,28,19],[29,18,29,19],[32,9,33,10],[34,9,34,10],[32,12,33,13],[34,12,34,13],[32,15,33,16],[34,15,34,16],[32,18,33,19],[34,18,34,19],[27,9,28,10],[29,9,29,10],[27,12,28,13],[29,12,29,13],[27,15,28,16],[29,15,29,16],[0,3,4,100],[17,18,18,19],[19,18,19,19],[22,9,23,10],[24,9,24,10],[22,12,23,13],[24,12,24,13],[22,15,23,16],[24,15,24,16],[22,18,23,19],[24,18,24,19],[19,9,19,10],[19,12,19,13],[19,15,19,16],[17,9,18,10],[17,12,18,13],[17,15,18,16],[13,15,14,16],[15,15,15,16],[13,18,14,19],[15,18,15,19],[13,21,14,22],[13,9,14,10],[15,9,15,10],[13,12,14,13],[15,12,15,13],[19,21,19,22],[19,24,19,25],[22,21,23,22],[22,24,23,25],[24,21,24,22],[24,24,24,25],[13,24,14,25],[15,21,15,22],[15,24,15,25],[17,21,18,22],[17,24,18,25],[54,21,54,22],[54,24,54,25],[42,21,43,22],[42,24,43,25],[44,21,44,22],[44,24,44,25],[47,21,48,22],[47,24,48,25],[34,21,34,22],[34,24,34,25],[37,21,38,22],[37,24,38,25],[39,21,39,22],[39,24,39,25],[13,27,14,28],[13,30,14,31],[15,27,15,28],[15,30,15,31],[17,27,18,28],[17,30,18,31],[49,21,49,22],[49,24,49,25],[52,21,53,22],[52,24,53,25],[27,21,28,22],[27,24,28,25],[29,21,29,22],[29,24,29,25],[32,21,33,22],[32,24,33,25],[29,27,29,28],[29,30,29,31],[32,27,33,28],[32,30,33,31],[19,27,19,28],[19,30,19,31],[22,27,23,28],[22,30,23,31],[24,27,24,28],[24,30,24,31],[13,33,14,34],[13,36,14,37],[15,33,15,34],[15,36,15,37],[17,33,18,34],[17,36,18,37],[49,27,49,28],[49,30,49,31],[52,27,53,28],[52,30,53,31],[42,27,43,28],[42,30,43,31],[44,27,44,28],[44,30,44,31],[47,27,48,28],[47,30,48,31],[34,27,34,28],[34,30,34,31],[37,27,38,28],[37,30,38,31],[39,27,39,28],[39,30,39,31],[27,27,28,28],[27,30,28,31],[29,33,29,34],[29,36,29,37],[32,33,33,34],[32,36,33,37],[19,33,19,34],[19,36,19,37],[22,33,23,34],[22,36,23,37],[24,33,24,34],[24,36,24,37],[13,39,14,40],[13,42,14,43],[15,39,15,40],[15,42,15,43],[17,39,18,40],[17,42,18,43],[49,33,49,34],[49,36,49,37],[52,33,53,34],[52,36,53,37],[42,33,43,34],[42,36,43,37],[44,33,44,34],[44,36,44,37],[47,33,48,34],[47,36,48,37],[34,33,34,34],[34,36,34,37],[37,33,38,34],[37,36,38,37],[39,33,39,34],[39,36,39,37],[27,33,28,34],[27,36,28,37],[29,39,29,40],[29,42,29,43],[32,39,33,40],[32,42,33,43],[19,39,19,40],[19,42,19,43],[22,39,23,40],[22,42,23,43],[24,39,24,40],[24,42,24,43],[13,45,14,46],[13,48,14,49],[15,45,15,46],[15,48,15,49],[17,45,18,46],[17,48,18,49],[49,39,49,40],[49,42,49,43],[52,39,53,40],[52,42,53,43],[42,39,43,40],[42,42,43,43],[44,39,44,40],[44,42,44,43],[47,39,48,40],[47,42,48,43],[34,39,34,40],[34,42,34,43],[37,39,38,40],[37,42,38,43],[39,39,39,40],[39,42,39,43],[27,39,28,40],[27,42,28,43],[29,45,29,46],[29,48,29,49],[32,45,33,46],[32,48,33,49],[19,45,19,46],[19,48,19,49],[22,45,23,46],[22,48,23,49],[24,45,24,46],[24,48,24,49],[13,51,14,52],[13,54,14,55],[15,51,15,52],[15,54,15,55],[17,51,18,52],[17,54,18,55],[49,45,49,46],[49,48,49,49],[52,45,53,46],[52,48,53,49],[42,45,43,46],[42,48,43,49],[44,45,44,46],[44,48,44,49],[47,45,48,46],[47,48,48,49],[34,45,34,46],[34,48,34,49],[37,45,38,46],[37,48,38,49],[39,45,39,46],[39,48,39,49],[27,45,28,46],[27,48,28,49],[29,51,29,52],[29,54,29,55],[32,51,33,52],[32,54,33,55],[19,51,19,52],[19,54,19,55],[22,51,23,52],[22,54,23,55],[24,51,24,52],[24,54,24,55],[13,57,14,58],[13,60,14,61],[15,57,15,58],[15,60,15,61],[17,57,18,58],[17,60,18,61],[49,51,49,52],[49,54,49,55],[52,51,53,52],[52,54,53,55],[42,51,43,52],[42,54,43,55],[44,51,44,52],[44,54,44,55],[47,51,48,52],[47,54,48,55],[34,51,34,52],[34,54,34,55],[37,51,38,52],[37,54,38,55],[39,51,39,52],[39,54,39,55],[27,51,28,52],[27,54,28,55],[29,57,29,58],[29,60,29,61],[32,57,33,58],[32,60,33,61],[19,57,19,58],[19,60,19,61],[22,57,23,58],[22,60,23,61],[24,57,24,58],[24,60,24,61],[13,63,14,64],[13,66,14,67],[15,63,15,64],[15,66,15,67],[17,63,18,64],[17,66,18,67],[49,57,49,58],[49,60,49,61],[52,57,53,58],[52,60,53,61],[42,57,43,58],[42,60,43,61],[44,57,44,58],[44,60,44,61],[47,57,48,58],[47,60,48,61],[34,57,34,58],[34,60,34,61],[37,57,38,58],[37,60,38,61],[39,57,39,58],[39,60,39,61],[27,57,28,58],[27,60,28,61],[29,63,29,64],[29,66,29,67],[32,63,33,64],[32,66,33,67],[19,63,19,64],[19,66,19,67],[22,63,23,64],[22,66,23,67],[24,63,24,64],[24,66,24,67],[13,69,14,70],[13,72,14,73],[15,69,15,70],[15,72,15,73],[17,69,18,70],[17,72,18,73],[49,63,49,64],[49,66,49,67],[52,63,53,64],[52,66,53,67],[42,63,43,64],[42,66,43,67],[44,63,44,64],[44,66,44,67],[47,63,48,64],[47,66,48,67],[34,63,34,64],[34,66,34,67],[37,63,38,64],[37,66,38,67],[39,63,39,64],[39,66,39,67],[27,63,28,64],[27,66,28,67],[27,69,28,70],[27,72,28,73],[29,69,29,70],[29,72,29,73],[32,69,33,70],[32,72,33,73],[19,69,19,70],[19,72,19,73],[22,69,23,70],[22,72,23,73],[24,69,24,70],[24,72,24,73],[42,69,43,70],[44,69,44,70],[44,72,44,73],[47,69,48,70],[47,72,48,73],[34,69,34,70],[34,72,34,73],[37,69,38,70],[37,72,38,73],[39,69,39,70],[39,72,39,73],[47,9,48,10],[47,12,48,13],[52,9,53,10],[52,12,53,13],[49,69,49,70],[49,72,49,73],[52,69,53,70],[52,72,53,73],[54,69,54,70],[54,72,54,73],[54,63,54,64],[54,66,54,67],[54,57,54,58],[54,60,54,61],[54,51,54,52],[54,54,54,55],[54,45,54,46],[54,48,54,49],[54,39,54,40],[54,42,54,43],[54,33,54,34],[54,36,54,37],[54,27,54,28],[54,30,54,31]]}
[]
[]
[]
[]
[]
[]
[]
[]
[]
[]
[]
[]
[]
[null,null,null,null,null,null,null,null,null,{"$f":"IF(COUNTIF(Geral!F13:AM13,\"Trein. Finalizado\")=17,\"Treinamento Finalizado\",IF(COUNTBLANK(Geral!F13:AM13)=34,\"* * * * *\",\"Em Treinamento\"))","v":"Treinamento Finalizado"},null,null,{"$f":"IF(COUNTIF(Geral!F16:AM16,\"Trein. Finalizado\")=17,\"Treinamento Finalizado\",IF(COUNTBLANK(Geral!F16:AM16)=34,\"* * * * *\",\"Em Treinamento\"))","v":"Em Treinamento"},null,null,{"$f":"IF(COUNTIF(hplc!F13:U13,\"Trein. Finalizado\")=8,\"Treinamento Finalizado\",IF(COUNTBLANK(hplc!F13:U13)=16,\"* * * * *\",\"Em Treinamento\"))","v":"Treinamento Finalizado"},null,null,{"$f":"IF(COUNTIF(hplc!F16:U16,\"Trein. Finalizado\")=8,\"Treinamento Finalizado\",IF(COUNTBLANK(hplc!F16:U16)=16,\"* * * * *\",\"Em Treinamento\"))","v":"Em Treinamento"},null,null,{"$f":"IF(COUNTIF(Espectro!F13:M13,\"Trein. Finalizado\")=4,\"Treinamento Finalizado\",IF(COUNTBLANK(Espectro!F13:M13)=8,\"* * * * *\",\"Em Treinamento\"))","v":"Treinamento Finalizado"},null,null,{"$f":"IF(COUNTIF(Espectro!F16:M16,\"Trein. Finalizado\")=4,\"Treinamento Finalizado\",IF(COUNTBLANK(Espectro!F16:M16)=8,\"* * * * *\",\"Em Treinamento\"))","v":"Em Treinamento"},null,null,{"$f":"IF(COUNTIF('Karl fischer'!F13:M13,\"Trein. Finalizado\")=4,\"Treinamento Finalizado\",IF(COUNTBLANK('Karl fischer'!F13:M13)=8,\"* * * * *\",\"Em Treinamento\"))","v":"Treinamento Finalizado"},null,null,{"$f":"IF(COUNTIF('Karl fischer'!F16:M16,\"Trein. Finalizado\")=4,\"Treinamento Finalizado\",IF(COUNTBLANK('Karl fischer'!F16:M16)=8,\"* * * * *\",\"Em Treinamento\"))","v":"Treinamento Finalizado"},null,null,{"$f":"IF(COUNTIF(Agua!F13:M13,\"Trein. Finalizado\")=4,\"Treinamento Finalizado\",IF(COUNTBLANK(Agua!F13:M13)=8,\"* * * * *\",\"Em Treinamento\"))","v":"Treinamento Finalizado"},null,null,{"$f":"IF(COUNTIF(Agua!F16:M16,\"Trein. Finalizado\")=4,\"Treinamento Finalizado\",IF(COUNTBLANK(Agua!F16:M16)=8,\"* * * * *\",\"Em Treinamento\"))","v":"Em Treinamento"},null,null,{"$f":"IF(COUNTIF(Titulação!F13:M13,\"Trein. Finalizado\")=4,\"Treinamento Finalizado\",IF(COUNTBLANK(Titulação!F13:M13)=8,\"* * * * *\",\"Em Treinamento\"))","v":"Treinamento Finalizado"},null,null,{"$f":"IF(COUNTIF(Titulação!F16:M16,\"Trein. Finalizado\")=4,\"Treinamento Finalizado\",IF(COUNTBLANK(Titulação!F16:M16)=8,\"* * * * *\",\"Em Treinamento\"))","v":"Treinamento Finalizado"},null,null,{"$f":"IF(COUNTIF('Peso Medio'!F13:M13,\"Trein. Finalizado\")=4,\"Treinamento Finalizado\",IF(COUNTBLANK('Peso Medio'!F13:M13)=8,\"* * * * *\",\"Em Treinamento\"))","v":"Treinamento Finalizado"},null,null,{"$f":"IF(COUNTIF('Peso Medio'!F16:M16,\"Trein. Finalizado\")=4,\"Treinamento Finalizado\",IF(COUNTBLANK('Peso Medio'!F16:M16)=8,\"* * * * *\",\"Em Treinamento\"))","v":"Treinamento Finalizado"},null,null,{"$f":"IF(COUNTIF(Validação!F13:Q13,\"Trein. Finalizado\")=6,\"Treinamento Finalizado\",IF(COUNTBLANK(Validação!F13:Q13)=12,\"* * * * *\",\"Em Treinamento\"))","v":"Treinamento Finalizado"},null,null,{"$f":"IF(COUNTIF(Validação!F16:Q16,\"Trein. Finalizado\")=6,\"Treinamento Finalizado\",IF(COUNTBLANK(Validação!F16:Q16)=12,\"* * * * *\",\"Em Treinamento\"))","v":"Em Treinamento"},null,null,{"$f":"IF(COUNTIF('Teor A.'!F13:K13,\"Trein. Finalizado\")=3,\"Treinamento Finalizado\",IF(COUNTBLANK('Teor A.'!F13:K13)=6,\"* * * * *\",\"Em Treinamento\"))","v":"Treinamento Finalizado"},null,null,{"$f":"IF(COUNTIF('Teor A.'!F16:K16,\"Trein. Finalizado\")=3,\"Treinamento Finalizado\",IF(COUNTBLANK('Teor A.'!F16:K16)=6,\"* * * * *\",\"Em Treinamento\"))","v":"Em Treinamento"},null,null,{"$f":"IF(COUNTIF(Perfil!F13:O13,\"Trein. Finalizado\")=5,\"Treinamento Finalizado\",IF(COUNTBLANK(Perfil!F13:O13)=10,\"* * * * *\",\"Em Treinamento\"))","v":"Treinamento Finalizado"},null,null,{"$f":"IF(COUNTIF(Perfil!F16:O16,\"Trein. Finalizado\")=5,\"Treinamento Finalizado\",IF(COUNTBLANK(Perfil!F16:O16)=10,\"* * * * *\",\"Em Treinamento\"))","v":"Em Treinamento"},null,null,{"$f":"IF(COUNTIF('Perda S.'!F13:O13,\"Trein. Finalizado\")=5,\"Treinamento Finalizado\",IF(COUNTBLANK('Perda S.'!F13:O13)=10,\"* * * * *\",\"Em Treinamento\"))","v":"* * * * *"},null,null,{"$f":"IF(COUNTIF('Perda S.'!F16:O16,\"Trein. Finalizado\")=5,\"Treinamento Finalizado\",IF(COUNTBLANK('Perda S.'!F16:O16)=10,\"* * * * *\",\"Em Treinamento\"))","v":"* * * * *"}]
[]
[null,null,null,null,null,null,null,null,null,"2023-07-16",null,null,null,null,null,null,null,null,null,null,null,null,null,null,null,null,null,"2023-07-16",null,null,"2023-07-16",null,null,"2023-07-16",null,null,null,null,null,"2023-07-16",null,null,"2023-07-16",null,null,"2023-07-16",null,null,"2023-07-16",null,null,null,null,null,null,null,null,null,null,null,null,null,null,"2023-07-16"]
[]
[null,null,null,null,null,null,null,null,null,{"$f":"IF(COUNTIF(Geral!F19:AM19,\"Trein. Finalizado\")=17,\"Treinamento Finalizado\",IF(COUNTBLANK(Geral!F19:AM19)=34,\"* * * * *\",\"Em Treinamento\"))","v":"Treinamento Finalizado"},null,null,{"$f":"IF(COUNTIF(Geral!F22:AM22,\"Trein. Finalizado\")=17,\"Treinamento Finalizado\",IF(COUNTBLANK(Geral!F22:AM22)=34,\"* * * * *\",\"Em Treinamento\"))","v":"Em Treinamento"},null,null,{"$f":"IF(COUNTIF(hplc!F19:U19,\"Trein. Finalizado\")=8,\"Treinamento Finalizado\",IF(COUNTBLANK(hplc!F19:U19)=16,\"* * * * *\",\"Em Treinamento\"))","v":"Em Treinamento"},null,null,{"$f":"IF(COUNTIF(hplc!F22:U22,\"Trein. Finalizado\")=8,\"Treinamento Finalizado\",IF(COUNTBLANK(hplc!F22:U22)=16,\"* * * * *\",\"Em Treinamento\"))","v":"Em Treinamento"},null,null,{"$f":"IF(COUNTIF(Espectro!F19:M19,\"Trein. Finalizado\")=4,\"Treinamento Finalizado\",IF(COUNTBLANK(Espectro!F19:M19)=8,\"* * * * *\",\"Em Treinamento\"))","v":"Em Treinamento"},null,null,{"$f":"IF(COUNTIF(Espectro!F22:M22,\"Trein. Finalizado\")=4,\"Treinamento Finalizado\",IF(COUNTBLANK(Espectro!F22:M22)=8,\"* * * * *\",\"Em Treinamento\"))","v":"Em Treinamento"},null,null,{"$f":"IF(COUNTIF('Karl fischer'!F19:M19,\"Trein. Finalizado\")=4,\"Treinamento Finalizado\",IF(COUNTBLANK('Karl fischer'!F19:M19)=8,\"* * * * *\",\"Em Treinamento\"))","v":"Treinamento Finalizado"},null,null,{"$f":"IF(COUNTIF('Karl fischer'!F22:M22,\"Trein. Finalizado\")=4,\"Treinamento Finalizado\",IF(COUNTBLANK('Karl fischer'!F22:M22)=8,\"* * * * *\",\"Em Treinamento\"))","v":"Treinamento Finalizado"},null,null,{"$f":"IF(COUNTIF(Agua!F19:M19,\"Trein. Finalizado\")=4,\"Treinamento Finalizado\",IF(COUNTBLANK(Agua!F19:M19)=8,\"* * * * *\",\"Em Treinamento\"))","v":"Treinamento Finalizado"},null,null,{"$f":"IF(COUNTIF(Agua!F22:M22,\"Trein. Finalizado\")=4,\"Treinamento Finalizado\",IF(COUNTBLANK(Agua!F22:M22)=8,\"* * * * *\",\"Em Treinamento\"))","v":"Em Treinamento"},null,null,{"$f":"IF(COUNTIF(Titulação!F19:M19,\"Trein. Finalizado\")=4,\"Treinamento Finalizado\",IF(COUNTBLANK(Titulação!F19:M19)=8,\"* * * * *\",\"Em Treinamento\"))","v":"Treinamento Finalizado"},null,null,{"$f":"IF(COUNTIF(Titulação!F22:M22,\"Trein. Finalizado\")=4,\"Treinamento Finalizado\",IF(COUNTBLANK(Titulação!F22:M22)=8,\"* * * * *\",\"Em Treinamento\"))","v":"Treinamento Finalizado"},null,null,{"$f":"IF(COUNTIF('Peso Medio'!F19:M19,\"Trein. Finalizado\")=4,\"Treinamento Finalizado\",IF(COUNTBLANK('Peso Medio'!F19:M19)=8,\"* * * * *\",\"Em Treinamento\"))","v":"Treinamento Finalizado"},null,null,{"$f":"IF(COUNTIF('Peso Medio'!F22:M22,\"Trein. Finalizado\")=4,\"Treinamento Finalizado\",IF(COUNTBLANK('Peso Medio'!F22:M22)=8,\"* * * * *\",\"Em Treinamento\"))","v":"Em Treinamento"},null,null,{"$f":"IF(COUNTIF(Validação!F19:Q19,\"Trein. Finalizado\")=6,\"Treinamento Finalizado\",IF(COUNTBLANK(Validação!F19:Q19)=12,\"* * * * *\",\"Em Treinamento\"))","v":"Treinamento Finalizado"},null,null,{"$f":"IF(COUNTIF(Validação!F22:Q22,\"Trein. Finalizado\")=6,\"Treinamento Finalizado\",IF(COUNTBLANK(Validação!F22:Q22)=12,\"* * * * *\",\"Em Treinamento\"))","v":"Em Treinamento"},null,null,{"$f":"IF(COUNTIF('Teor A.'!F19:K19,\"Trein. Finalizado\")=3,\"Treinamento Finalizado\",IF(COUNTBLANK('Teor A.'!F19:K19)=6,\"* * * * *\",\"Em Treinamento\"))","v":"Treinamento Finalizado"},null,null,{"$f":"IF(COUNTIF('Teor A.'!F22:K22,\"Trein. Finalizado\")=3,\"Treinamento Finalizado\",IF(COUNTBLANK('Teor A.'!F22:K22)=6,\"* * * * *\",\"Em Treinamento\"))","v":"Treinamento Finalizado"},null,null,{"$f":"IF(COUNTIF(Perfil!F19:O19,\"Trein. Finalizado\")=5,\"Treinamento Finalizado\",IF(COUNTBLANK(Perfil!F19:O19)=10,\"* * * * *\",\"Em Treinamento\"))","v":"Treinamento Finalizado"},null,null,{"$f":"IF(COUNTIF(Perfil!F22:O22,\"Trein. Finalizado\")=5,\"Treinamento Finalizado\",IF(COUNTBLANK(Perfil!F22:O22)=10,\"* * * * *\",\"Em Treinamento\"))","v":"Em Treinamento"},null,null,{"$f":"IF(COUNTIF('Perda S.'!F19:O19,\"Trein. Finalizado\")=5,\"Treinamento Finalizado\",IF(COUNTBLANK('Perda S.'!F19:O19)=10,\"* * * * *\",\"Em Treinamento\"))","v":"* * * * *"},null,null,{"$f":"IF(COUNTIF('Perda S.'!F22:O22,\"Trein. Finalizado\")=5,\"Treinamento Finalizado\",IF(COUNTBLANK('Perda S.'!F22:O22)=10,\"* * * * *\",\"Em Treinamento\"))","v":"* * * * *"}]
[]
[null,null,null,null,null,null,null,null,null,"2023-07-16",null,null,null,null,null,null,null,null,null,null,null,null,null,null,null,null,null,"2023-07-16",null,null,"2023-07-16",null,null,null,null,null,null,null,null,"2023-07-16",null,null,"2023-07-16"]
[]
[]
[null,null,null,null,null,null,null,null,null,{"$f":"IF(COUNTIF(Geral!F25:AM25,\"Trein. Finalizado\")=17,\"Treinamento Finalizado\",IF(COUNTBLANK(Geral!F25:AL25)=34,\"* * * * *\",\"Em Treinamento\"))","v":"Em Treinamento"},null,null,{"$f":"IF(COUNTIF(Geral!F28:AM28,\"Trein. Finalizado\")=17,\"Treinamento Finalizado\",IF(COUNTBLANK(Geral!F28:AM28)=34,\"* * * * *\",\"Em Treinamento\"))","v":"Em Treinamento"},null,null,{"$f":"IF(COUNTIF(hplc!F25:U25,\"Trein. Finalizado\")=8,\"Treinamento Finalizado\",IF(COUNTBLANK(hplc!F25:U25)=16,\"* * * * *\",\"Em Treinamento\"))","v":"Treinamento Finalizado"},null,null,{"$f":"IF(COUNTIF(hplc!F28:U28,\"Trein. Finalizado\")=8,\"Treinamento Finalizado\",IF(COUNTBLANK(hplc!F28:U28)=16,\"* * * * *\",\"Em Treinamento\"))","v":"* * * * *"},null,null,{"$f":"IF(COUNTIF(Espectro!F25:M25,\"Trein. Finalizado\")=4,\"Treinamento Finalizado\",IF(COUNTBLANK(Espectro!F25:M25)=8,\"* * * * *\",\"Em Treinamento\"))","v":"Em Treinamento"},null,null,{"$f":"IF(COUNTIF(Espectro!F28:M28,\"Trein. Finalizado\")=4,\"Treinamento Finalizado\",IF(COUNTBLANK(Espectro!F28:M28)=8,\"* * * * *\",\"Em Treinamento\"))","v":"* * * * *"},null,null,{"$f":"IF(COUNTIF('Karl fischer'!F25:M25,\"Trein. Finalizado\")=4,\"Treinamento Finalizado\",IF(COUNTBLANK('Karl fischer'!F25:M25)=8,\"* * * * *\",\"Em Treinamento\"))","v":"Treinamento Finalizado"},null,null,{"$f":"IF(COUNTIF('Karl fischer'!F28:M28,\"Trein. Finalizado\")=4,\"Treinamento Finalizado\",IF(COUNTBLANK('Karl fischer'!F28:M28)=8,\"* * * * *\",\"Em Treinamento\"))","v":"Treinamento Finalizado"},null,null,{"$f":"IF(COUNTIF(Agua!F25:M25,\"Trein. Finalizado\")=4,\"Treinamento Finalizado\",IF(COUNTBLANK(Agua!F25:M25)=8,\"* * * * *\",\"Em Treinamento\"))","v":"Em Treinamento"},null,null,{"$f":"IF(COUNTIF(Agua!F28:M28,\"Trein. Finalizado\")=4,\"Treinamento Finalizado\",IF(COUNTBLANK(Agua!F28:M28)=8,\"* * * * *\",\"Em Treinamento\"))","v":"Em Treinamento"},null,null,{"$f":"IF(COUNTIF(Titulação!F25:M25,\"Trein. Finalizado\")=4,\"Treinamento Finalizado\",IF(COUNTBLANK(Titulação!F25:M25)=8,\"* * * * *\",\"Em Treinamento\"))","v":"Treinamento Finalizado"},null,null,{"$f":"IF(COUNTIF(Titulação!F28:M28,\"Trein. Finalizado\")=4,\"Treinamento Finalizado\",IF(COUNTBLANK(Titulação!F28:M28)=8,\"* * * * *\",\"Em Treinamento\"))","v":"Treinamento Finalizado"},null,null,{"$f":"IF(COUNTIF('Peso Medio'!F25:M25,\"Trein. Finalizado\")=4,\"Treinamento Finalizado\",IF(COUNTBLANK('Peso Medio'!F25:M25)=8,\"* * * * *\",\"Em Treinamento\"))","v":"Em Treinamento"},null,null,{"$f":"IF(COUNTIF('Peso Medio'!F28:M28,\"Trein. Finalizado\")=4,\"Treinamento Finalizado\",IF(COUNTBLANK('Peso Medio'!F28:M28)=8,\"* * * * *\",\"Em Treinamento\"))","v":"Em Treinamento"},null,null,{"$f":"IF(COUNTIF(Validação!F25:Q25,\"Trein. Finalizado\")=6,\"Treinamento Finalizado\",IF(COUNTBLANK(Validação!F25:Q25)=12,\"* * * * *\",\"Em Treinamento\"))","v":"Em Treinamento"},null,null,{"$f":"IF(COUNTIF(Validação!F28:Q28,\"Trein. Finalizado\")=6,\"Treinamento Finalizado\",IF(COUNTBLANK(Validação!F28:Q28)=12,\"* * * * *\",\"Em Treinamento\"))","v":"Em Treinamento"},null,null,{"$f":"IF(COUNTIF('Teor A.'!F25:K25,\"Trein. Finalizado\")=3,\"Treinamento Finalizado\",IF(COUNTBLANK('Teor A.'!F25:K25)=6,\"* * * * *\",\"Em Treinamento\"))","v":"Em Treinamento"},null,null,{"$f":"IF(COUNTIF('Teor A.'!F28:K28,\"Trein. Finalizado\")=3,\"Treinamento Finalizado\",IF(COUNTBLANK('Teor A.'!F28:K28)=6,\"* * * * *\",\"Em Treinamento\"))","v":"Em Treinamento"},null,null,{"$f":"IF(COUNTIF(Perfil!F25:O25,\"Trein. Finalizado\")=5,\"Treinamento Finalizado\",IF(COUNTBLANK(Perfil!F25:O25)=10,\"* * * * *\",\"Em Treinamento\"))","v":"Treinamento Finalizado"},null,null,{"$f":"IF(COUNTIF(Perfil!F28:O28,\"Trein. Finalizado\")=5,\"Treinamento Finalizado\",IF(COUNTBLANK(Perfil!F28:O28)=10,\"* * * * *\",\"Em Treinamento\"))","v":"Em Treinamento"},null,null,{"$f":"IF(COUNTIF('Perda S.'!F25:O25,\"Trein. Finalizado\")=5,\"Treinamento Finalizado\",IF(COUNTBLANK('Perda S.'!F25:O25)=10,\"* * * * *\",\"Em Treinamento\"))","v":"* * * * *"},null,null,{"$f":"IF(COUNTIF('Perda S.'!F28:O28,\"Trein. Finalizado\")=5,\"Treinamento Finalizado\",IF(COUNTBLANK('Perda S.'!F28:O28)=10,\"* * * * *\",\"Em Treinamento\"))","v":"* * * * *"}]
[]
[null,null,null,null,null,null,null,null,null,null,null,null,null,null,null,"2023-07-16",null,null,null,null,null,null,null,null,null,null,null,"2023-07-16",null,null,"2023-07-16",null,null,null,null,null,null,null,null,"2023-07-16",null,null,"2023-07-16"]
[]
[]
[null,null,null,null,null,null,null,null,null,{"$f":"IF(COUNTIF(Geral!F31:AM31,\"Trein. Finalizado\")=17,\"Treinamento Finalizado\",IF(COUNTBLANK(Geral!F31:AM31)=34,\"* * * * *\",\"Em Treinamento\"))","v":"Em Treinamento"},null,null,{"$f":"IF(COUNTIF(Geral!F34:AM34,\"Trein. Finalizado\")=17,\"Treinamento Finalizado\",IF(COUNTBLANK(Geral!F34:AM34)=34,\"* * * * *\",\"Em Treinamento\"))","v":"Em Treinamento"},null,null,{"$f":"IF(COUNTIF(hplc!F31:U31,\"Trein. Finalizado\")=8,\"Treinamento Finalizado\",IF(COUNTBLANK(hplc!F31:U31)=16,\"* * * * *\",\"Em Treinamento\"))","v":"Treinamento Finalizado"},null,null,{"$f":"IF(COUNTIF(hplc!F34:U34,\"Trein. Finalizado\")=8,\"Treinamento Finalizado\",IF(COUNTBLANK(hplc!F34:U34)=16,\"* * * * *\",\"Em Treinamento\"))","v":"* * * * *"},null,null,{"$f":"IF(COUNTIF(Espectro!F31:M31,\"Trein. Finalizado\")=4,\"Treinamento Finalizado\",IF(COUNTBLANK(Espectro!F31:M31)=8,\"* * * * *\",\"Em Treinamento\"))","v":"Treinamento Finalizado"},null,null,{"$f":"IF(COUNTIF(Espectro!F34:M34,\"Trein. Finalizado\")=4,\"Treinamento Finalizado\",IF(COUNTBLANK(Espectro!F34:M34)=8,\"* * * * *\",\"Em Treinamento\"))","v":"* * * * *"},null,null,{"$f":"IF(COUNTIF('Karl fischer'!F31:M31,\"Trein. Finalizado\")=4,\"Treinamento Finalizado\",IF(COUNTBLANK('Karl fischer'!F31:M31)=8,\"* * * * *\",\"Em Treinamento\"))","v":"Treinamento Finalizado"},null,null,{"$f":"IF(COUNTIF('Karl fischer'!F34:M34,\"Trein. Finalizado\")=4,\"Treinamento Finalizado\",IF(COUNTBLANK('Karl fischer'!F34:M34)=8,\"* * * * *\",\"Em Treinamento\"))","v":"* * * * *"},null,null,{"$f":"IF(COUNTIF(Agua!F31:M31,\"Trein. Finalizado\")=4,\"Treinamento Finalizado\",IF(COUNTBLANK(Agua!F31:M31)=8,\"* * * * *\",\"Em Treinamento\"))","v":"Em Treinamento"},null,null,{"$f":"IF(COUNTIF(Agua!F34:M34,\"Trein. Finalizado\")=4,\"Treinamento Finalizado\",IF(COUNTBLANK(Agua!F34:M34)=8,\"* * * * *\",\"Em Treinamento\"))","v":"Em Treinamento"},null,null,{"$f":"IF(COUNTIF(Titulação!F31:M31,\"Trein. Finalizado\")=4,\"Treinamento Finalizado\",IF(COUNTBLANK(Titulação!F31:M31)=8,\"* * * * *\",\"Em Treinamento\"))","v":"Treinamento Finalizado"},null,null,{"$f":"IF(COUNTIF(Titulação!F34:M34,\"Trein. Finalizado\")=4,\"Treinamento Finalizado\",IF(COUNTBLANK(Titulação!F34:M34)=8,\"* * * * *\",\"Em Treinamento\"))","v":"* * * * *"},null,null,{"$f":"IF(COUNTIF('Peso Medio'!F31:M31,\"Trein. Finalizado\")=4,\"Treinamento Finalizado\",IF(COUNTBLANK('Peso Medio'!F31:M31)=8,\"* * * * *\",\"Em Treinamento\"))","v":"Em Treinamento"},null,null,{"$f":"IF(COUNTIF('Peso Medio'!F34:M34,\"Trein. Finalizado\")=4,\"Treinamento Finalizado\",IF(COUNTBLANK('Peso Medio'!F34:M34)=8,\"* * * * *\",\"Em Treinamento\"))","v":"Em Treinamento"},null,null,{"$f":"IF(COUNTIF(Validação!F31:Q31,\"Trein. Finalizado\")=6,\"Treinamento Finalizado\",IF(COUNTBLANK(Validação!F31:Q31)=12,\"* * * * *\",\"Em Treinamento\"))","v":"Em Treinamento"},null,null,{"$f":"IF(COUNTIF(Validação!F34:Q34,\"Trein. Finalizado\")=6,\"Treinamento Finalizado\",IF(COUNTBLANK(Validação!F34:Q34)=12,\"* * * * *\",\"Em Treinamento\"))","v":"Em Treinamento"},null,null,{"$f":"IF(COUNTIF('Teor A.'!F31:K31,\"Trein. Finalizado\")=3,\"Treinamento Finalizado\",IF(COUNTBLANK('Teor A.'!F31:K31)=6,\"* * * * *\",\"Em Treinamento\"))","v":"Em Treinamento"},null,null,{"$f":"IF(COUNTIF('Teor A.'!F34:K34,\"Trein. Finalizado\")=3,\"Treinamento Finalizado\",IF(COUNTBLANK('Teor A.'!F34:K34)=6,\"* * * * *\",\"Em Treinamento\"))","v":"Em Treinamento"},null,null,{"$f":"IF(COUNTIF(Perfil!F31:O31,\"Trein. Finalizado\")=5,\"Treinamento Finalizado\",IF(COUNTBLANK(Perfil!F31:O31)=10,\"* * * * *\",\"Em Treinamento\"))","v":"Em Treinamento"},null,null,{"$f":"IF(COUNTIF(Perfil!F34:O34,\"Trein. Finalizado\")=5,\"Treinamento Finalizado\",IF(COUNTBLANK(Perfil!F34:O34)=10,\"* * * * *\",\"Em Treinamento\"))","v":"Em Treinamento"},null,null,{"$f":"IF(COUNTIF('Perda S.'!F31:O31,\"Trein. Finalizado\")=5,\"Treinamento Finalizado\",IF(COUNTBLANK('Perda S.'!F31:O31)=10,\"* * * * *\",\"Em Treinamento\"))","v":"* * * * *"},null,null,{"$f":"IF(COUNTIF('Perda S.'!F34:O34,\"Trein. Finalizado\")=5,\"Treinamento Finalizado\",IF(COUNTBLANK('Perda S.'!F34:O34)=10,\"* * * * *\",\"Em Treinamento\"))","v":"* * * * *"}]
[]
[null,null,null,null,null,null,null,null,null,null,null,null,null,null,null,"2023-07-16",null,null,null,null,null,"2023-07-16",null,null,null,null,null,"2023-07-16",null,null,null,null,null,null,null,null,null,null,null,"2023-07-16"]
[]
[]
[null,null,null,null,null,null,null,null,null,{"$f":"IF(COUNTIF(Geral!F37:AM37,\"Trein. Finalizado\")=17,\"Treinamento Finalizado\",IF(COUNTBLANK(Geral!F37:AM37)=34,\"* * * * *\",\"Em Treinamento\"))","v":"Em Treinamento"},null,null,{"$f":"IF(COUNTIF(Geral!F40:AM40,\"Trein. Finalizado\")=17,\"Treinamento Finalizado\",IF(COUNTBLANK(Geral!F40:AM40)=34,\"* * * * *\",\"Em Treinamento\"))","v":"Em Treinamento"},null,null,{"$f":"IF(COUNTIF(hplc!F37:U37,\"Trein. Finalizado\")=8,\"Treinamento Finalizado\",IF(COUNTBLANK(hplc!F37:U37)=16,\"* * * * *\",\"Em Treinamento\"))","v":"Em Treinamento"},null,null,{"$f":"IF(COUNTIF(hplc!F40:U40,\"Trein. Finalizado\")=8,\"Treinamento Finalizado\",IF(COUNTBLANK(hplc!F40:U40)=16,\"* * * * *\",\"Em Treinamento\"))","v":"Treinamento Finalizado"},null,null,{"$f":"IF(COUNTIF(Espectro!F37:M37,\"Trein. Finalizado\")=4,\"Treinamento Finalizado\",IF(COUNTBLANK(Espectro!F37:M37)=8,\"* * * * *\",\"Em Treinamento\"))","v":"Em Treinamento"},null,null,{"$f":"IF(COUNTIF(Espectro!F40:M40,\"Trein. Finalizado\")=4,\"Treinamento Finalizado\",IF(COUNTBLANK(Espectro!F40:M40)=8,\"* * * * *\",\"Em Treinamento\"))","v":"Treinamento Finalizado"},null,null,{"$f":"IF(COUNTIF('Karl fischer'!F37:M37,\"Trein. Finalizado\")=4,\"Treinamento Finalizado\",IF(COUNTBLANK('Karl fischer'!F37:M37)=8,\"* * * * *\",\"Em Treinamento\"))","v":"Treinamento Finalizado"},null,null,{"$f":"IF(COUNTIF('Karl fischer'!F40:M40,\"Trein. Finalizado\")=4,\"Treinamento Finalizado\",IF(COUNTBLANK('Karl fischer'!F40:M40)=8,\"* * * * *\",\"Em Treinamento\"))","v":"Treinamento Finalizado"},null,null,{"$f":"IF(COUNTIF(Agua!F37:M37,\"Trein. Finalizado\")=4,\"Treinamento Finalizado\",IF(COUNTBLANK(Agua!F37:M37)=8,\"* * * * *\",\"Em Treinamento\"))","v":"Em Treinamento"},null,null,{"$f":"IF(COUNTIF(Agua!F40:M40,\"Trein. Finalizado\")=4,\"Treinamento Finalizado\",IF(COUNTBLANK(Agua!F40:M40)=8,\"* * * * *\",\"Em Treinamento\"))","v":"Em Treinamento"},null,null,{"$f":"IF(COUNTIF(Titulação!F37:M37,\"Trein. Finalizado\")=4,\"Treinamento Finalizado\",IF(COUNTBLANK(Titulação!F37:M37)=8,\"* * * * *\",\"Em Treinamento\"))","v":"Treinamento Finalizado"},null,null,{"$f":"IF(COUNTIF(Titulação!F40:M40,\"Trein. Finalizado\")=4,\"Treinamento Finalizado\",IF(COUNTBLANK(Titulação!F40:M40)=8,\"* * * * *\",\"Em Treinamento\"))","v":"Treinamento Finalizado"},null,null,{"$f":"IF(COUNTIF('Peso Medio'!F37:M37,\"Trein. Finalizado\")=4,\"Treinamento Finalizado\",IF(COUNTBLANK('Peso Medio'!F37:M37)=8,\"* * * * *\",\"Em Treinamento\"))","v":"Em Treinamento"},null,null,{"$f":"IF(COUNTIF('Peso Medio'!F40:M40,\"Trein. Finalizado\")=4,\"Treinamento Finalizado\",IF(COUNTBLANK('Peso Medio'!F40:M40)=8,\"* * * * *\",\"Em Treinamento\"))","v":"Em Treinamento"},null,null,{"$f":"IF(COUNTIF(Validação!F37:Q37,\"Trein. Finalizado\")=6,\"Treinamento Finalizado\",IF(COUNTBLANK(Validação!F37:Q37)=12,\"* * * * *\",\"Em Treinamento\"))","v":"Em Treinamento"},null,null,{"$f":"IF(COUNTIF(Validação!F40:Q40,\"Trein. Finalizado\")=6,\"Treinamento Finalizado\",IF(COUNTBLANK(Validação!F40:Q40)=12,\"* * * * *\",\"Em Treinamento\"))","v":"Em Treinamento"},null,null,{"$f":"IF(COUNTIF('Teor A.'!F37:K37,\"Trein. Finalizado\")=3,\"Treinamento Finalizado\",IF(COUNTBLANK('Teor A.'!F37:K37)=6,\"* * * * *\",\"Em Treinamento\"))","v":"Em Treinamento"},null,null,{"$f":"IF(COUNTIF('Teor A.'!F40:K40,\"Trein. Finalizado\")=3,\"Treinamento Finalizado\",IF(COUNTBLANK('Teor A.'!F40:K40)=6,\"* * * * *\",\"Em Treinamento\"))","v":"Em Treinamento"},null,null,{"$f":"IF(COUNTIF(Perfil!F37:O37,\"Trein. Finalizado\")=5,\"Treinamento Finalizado\",IF(COUNTBLANK(Perfil!F37:O37)=10,\"* * * * *\",\"Em Treinamento\"))","v":"Em Treinamento"},null,null,{"$f":"IF(COUNTIF(Perfil!F40:O40,\"Trein. Finalizado\")=5,\"Treinamento Finalizado\",IF(COUNTBLANK(Perfil!F40:O40)=10,\"* * * * *\",\"Em Treinamento\"))","v":"Em Treinamento"},null,null,{"$f":"IF(COUNTIF('Perda S.'!F37:O37,\"Trein. Finalizado\")=5,\"Treinamento Finalizado\",IF(COUNTBLANK('Perda S.'!F37:O37)=10,\"* * * * *\",\"Em Treinamento\"))","v":"* * * * *"},null,null,{"$f":"IF(COUNTIF('Perda S.'!F40:O40,\"Trein. Finalizado\")=5,\"Treinamento Finalizado\",IF(COUNTBLANK('Perda S.'!F40:O40)=10,\"* * * * *\",\"Em Treinamento\"))","v":"* * * * *"}]
[]
[null,null,null,null,null,null,null,null,null,null,null,null,null,null,null,null,null,null,null,null,null,null,null,null,"2023-07-16",null,null,"2023-07-16",null,null,"2023-07-16",null,null,null,null,null,null,null,null,"2023-07-16",null,null,"2023-07-16"]
[]
[]
[null,null,null,null,null,null,null,null,null,{"$f":"IF(COUNTIF(Geral!F43:AM43,\"Trein. Finalizado\")=17,\"Treinamento Finalizado\",IF(COUNTBLANK(Geral!F43:AM43)=34,\"* * * * *\",\"Em Treinamento\"))","v":"Em Treinamento"},null,null,{"$f":"IF(COUNTIF(Geral!F46:AM46,\"Trein. Finalizado\")=17,\"Treinamento Finalizado\",IF(COUNTBLANK(Geral!F46:AM46)=34,\"* * * * *\",\"Em Treinamento\"))","v":"Em Treinamento"},null,null,{"$f":"IF(COUNTIF(hplc!F43:U43,\"Trein. Finalizado\")=8,\"Treinamento Finalizado\",IF(COUNTBLANK(hplc!F43:U43)=16,\"* * * * *\",\"Em Treinamento\"))","v":"Em Treinamento"},null,null,{"$f":"IF(COUNTIF(hplc!F46:U46,\"Trein. Finalizado\")=8,\"Treinamento Finalizado\",IF(COUNTBLANK(hplc!F46:U46)=16,\"* * * * *\",\"Em Treinamento\"))","v":"* * * * *"},null,null,{"$f":"IF(COUNTIF(Espectro!F43:M43,\"Trein. Finalizado\")=4,\"Treinamento Finalizado\",IF(COUNTBLANK(Espectro!F43:M43)=8,\"* * * * *\",\"Em Treinamento\"))","v":"Em Treinamento"},null,null,{"$f":"IF(COUNTIF(Espectro!F46:M46,\"Trein. Finalizado\")=4,\"Treinamento Finalizado\",IF(COUNTBLANK(Espectro!F46:M46)=8,\"* * * * *\",\"Em Treinamento\"))","v":"* * * * *"},null,null,{"$f":"IF(COUNTIF('Karl fischer'!F43:M43,\"Trein. Finalizado\")=4,\"Treinamento Finalizado\",IF(COUNTBLANK('Karl fischer'!F43:M43)=8,\"* * * * *\",\"Em Treinamento\"))","v":"Treinamento Finalizado"},null,null,{"$f":"IF(COUNTIF('Karl fischer'!F46:M46,\"Trein. Finalizado\")=4,\"Treinamento Finalizado\",IF(COUNTBLANK('Karl fischer'!F46:M46)=8,\"* * * * *\",\"Em Treinamento\"))","v":"* * * * *"},null,null,{"$f":"IF(COUNTIF(Agua!F43:M43,\"Trein. Finalizado\")=4,\"Treinamento Finalizado\",IF(COUNTBLANK(Agua!F43:M43)=8,\"* * * * *\",\"Em Treinamento\"))","v":"Em Treinamento"},null,null,{"$f":"IF(COUNTIF(Agua!F46:M46,\"Trein. Finalizado\")=4,\"Treinamento Finalizado\",IF(COUNTBLANK(Agua!F46:M46)=8,\"* * * * *\",\"Em Treinamento\"))","v":"Em Treinamento"},null,null,{"$f":"IF(COUNTIF(Titulação!F43:M43,\"Trein. Finalizado\")=4,\"Treinamento Finalizado\",IF(COUNTBLANK(Titulação!F43:M43)=8,\"* * * * *\",\"Em Treinamento\"))","v":"Treinamento Finalizado"},null,null,{"$f":"IF(COUNTIF(Titulação!F46:M46,\"Trein. Finalizado\")=4,\"Treinamento Finalizado\",IF(COUNTBLANK(Titulação!F46:M46)=8,\"* * * * *\",\"Em Treinamento\"))","v":"Treinamento Finalizado"},null,null,{"$f":"IF(COUNTIF('Peso Medio'!F43:M43,\"Trein. Finalizado\")=4,\"Treinamento Finalizado\",IF(COUNTBLANK('Peso Medio'!F43:M43)=8,\"* * * * *\",\"Em Treinamento\"))","v":"Em Treinamento"},null,null,{"$f":"IF(COUNTIF('Peso Medio'!F46:M46,\"Trein. Finalizado\")=4,\"Treinamento Finalizado\",IF(COUNTBLANK('Peso Medio'!F46:M46)=8,\"* * * * *\",\"Em Treinamento\"))","v":"Em Treinamento"},null,null,{"$f":"IF(COUNTIF(Validação!F43:Q43,\"Trein. Finalizado\")=6,\"Treinamento Finalizado\",IF(COUNTBLANK(Validação!F43:Q43)=12,\"* * * * *\",\"Em Treinamento\"))","v":"Em Treinamento"},null,null,{"$f":"IF(COUNTIF(Validação!F46:Q46,\"Trein. Finalizado\")=6,\"Treinamento Finalizado\",IF(COUNTBLANK(Validação!F46:Q46)=12,\"* * * * *\",\"Em Treinamento\"))","v":"Em Treinamento"},null,null,{"$f":"IF(COUNTIF('Teor A.'!F43:K43,\"Trein. Finalizado\")=3,\"Treinamento Finalizado\",IF(COUNTBLANK('Teor A.'!F43:K43)=6,\"* * * * *\",\"Em Treinamento\"))","v":"Em Treinamento"},null,null,{"$f":"IF(COUNTIF('Teor A.'!F46:K46,\"Trein. Finalizado\")=3,\"Treinamento Finalizado\",IF(COUNTBLANK('Teor A.'!F46:K46)=6,\"* * * * *\",\"Em Treinamento\"))","v":"Em Treinamento"},null,null,{"$f":"IF(COUNTIF(Perfil!F43:O43,\"Trein. Finalizado\")=5,\"Treinamento Finalizado\",IF(COUNTBLANK(Perfil!F43:O43)=10,\"* * * * *\",\"Em Treinamento\"))","v":"Em Treinamento"},null,null,{"$f":"IF(COUNTIF(Perfil!F46:O46,\"Trein. Finalizado\")=5,\"Treinamento Finalizado\",IF(COUNTBLANK(Perfil!F46:O46)=10,\"* * * * *\",\"Em Treinamento\"))","v":"Em Treinamento"},null,null,{"$f":"IF(COUNTIF('Perda S.'!F43:O43,\"Trein. Finalizado\")=5,\"Treinamento Finalizado\",IF(COUNTBLANK('Perda S.'!F43:O43)=10,\"* * * * *\",\"Em Treinamento\"))","v":"* * * * *"},null,null,{"$f":"IF(COUNTIF('Perda S.'!F46:O46,\"Trein. Finalizado\")=5,\"Treinamento Finalizado\",IF(COUNTBLANK('Perda S.'!F46:O46)=10,\"* * * * *\",\"Em Treinamento\"))","v":"* * * * *"}]
[]
[null,null,null,null,null,null,null,null,null,null,null,null,null,null,null,null,null,null,null,null,null,null,null,null,null,null,null,"2023-07-16",null,null,"2023-07-16",null,null,null,null,null,null,null,null,"2023-07-16",null,null,"2023-07-16"]
[]
[]
[null,null,null,null,null,null,null,null,null,{"$f":"IF(COUNTIF(Geral!F49:AM49,\"Trein. Finalizado\")=17,\"Treinamento Finalizado\",IF(COUNTBLANK(Geral!F49:AM49)=34,\"* * * * *\",\"Em Treinamento\"))","v":"Em Treinamento"},null,null,{"$f":"IF(COUNTIF(Geral!F52:AM52,\"Trein. Finalizado\")=17,\"Treinamento Finalizado\",IF(COUNTBLANK(Geral!F52:AM52)=34,\"* * * * *\",\"Em Treinamento\"))","v":"Em Treinamento"},null,null,{"$f":"IF(COUNTIF(hplc!F49:U49,\"Trein. Finalizado\")=8,\"Treinamento Finalizado\",IF(COUNTBLANK(hplc!F49:U49)=16,\"* * * * *\",\"Em Treinamento\"))","v":"Em Treinamento"},null,null,{"$f":"IF(COUNTIF(hplc!F52:U52,\"Trein. Finalizado\")=8,\"Treinamento Finalizado\",IF(COUNTBLANK(hplc!F52:U52)=16,\"* * * * *\",\"Em Treinamento\"))","v":"* * * * *"},null,null,{"$f":"IF(COUNTIF(Espectro!F49:M49,\"Trein. Finalizado\")=4,\"Treinamento Finalizado\",IF(COUNTBLANK(Espectro!F49:M49)=8,\"* * * * *\",\"Em Treinamento\"))","v":"* * * * *"},null,null,{"$f":"IF(COUNTIF(Espectro!F52:M52,\"Trein. Finalizado\")=4,\"Treinamento Finalizado\",IF(COUNTBLANK(Espectro!F52:M52)=8,\"* * * * *\",\"Em Treinamento\"))","v":"* * * * *"},null,null,{"$f":"IF(COUNTIF('Karl fischer'!F49:M49,\"Trein. Finalizado\")=4,\"Treinamento Finalizado\",IF(COUNTBLANK('Karl fischer'!F49:M49)=8,\"* * * * *\",\"Em Treinamento\"))","v":"Treinamento Finalizado"},null,null,{"$f":"IF(COUNTIF('Karl fischer'!F52:M52,\"Trein. Finalizado\")=4,\"Treinamento Finalizado\",IF(COUNTBLANK('Karl fischer'!F52:M52)=8,\"* * * * *\",\"Em Treinamento\"))","v":"Treinamento Finalizado"},null,null,{"$f":"IF(COUNTIF(Agua!F49:M49,\"Trein. Finalizado\")=4,\"Treinamento Finalizado\",IF(COUNTBLANK(Agua!F49:M49)=8,\"* * * * *\",\"Em Treinamento\"))","v":"Em Treinamento"},null,null,{"$f":"IF(COUNTIF(Agua!F52:M52,\"Trein. Finalizado\")=4,\"Treinamento Finalizado\",IF(COUNTBLANK(Agua!F52:M52)=8,\"* * * * *\",\"Em Treinamento\"))","v":"* * * * *"},null,null,{"$f":"IF(COUNTIF(Titulação!F49:M49,\"Trein. Finalizado\")=4,\"Treinamento Finalizado\",IF(COUNTBLANK(Titulação!F49:M49)=8,\"* * * * *\",\"Em Treinamento\"))","v":"Treinamento Finalizado"},null,null,{"$f":"IF(COUNTIF(Titulação!F52:M52,\"Trein. Finalizado\")=4,\"Treinamento Finalizado\",IF(COUNTBLANK(Titulação!F52:M52)=8,\"* * * * *\",\"Em Treinamento\"))","v":"Treinamento Finalizado"},null,null,{"$f":"IF(COUNTIF('Peso Medio'!F49:M49,\"Trein. Finalizado\")=4,\"Treinamento Finalizado\",IF(COUNTBLANK('Peso Medio'!F49:M49)=8,\"* * * * *\",\"Em Treinamento\"))","v":"Em Treinamento"},null,null,{"$f":"IF(COUNTIF('Peso Medio'!F52:M52,\"Trein. Finalizado\")=4,\"Treinamento Finalizado\",IF(COUNTBLANK('Peso Medio'!F52:M52)=8,\"* * * * *\",\"Em Treinamento\"))","v":"* * * * *"},null,null,{"$f":"IF(COUNTIF(Validação!F49:Q49,\"Trein. Finalizado\")=6,\"Treinamento Finalizado\",IF(COUNTBLANK(Validação!F49:Q49)=12,\"* * * * *\",\"Em Treinamento\"))","v":"Em Treinamento"},null,null,{"$f":"IF(COUNTIF(Validação!F52:Q52,\"Trein. Finalizado\")=6,\"Treinamento Finalizado\",IF(COUNTBLANK(Validação!F52:Q52)=12,\"* * * * *\",\"Em Treinamento\"))","v":"* * * * *"},null,null,{"$f":"IF(COUNTIF('Teor A.'!F49:K49,\"Trein. Finalizado\")=3,\"Treinamento Finalizado\",IF(COUNTBLANK('Teor A.'!F49:K49)=6,\"* * * * *\",\"Em Treinamento\"))","v":"Em Treinamento"},null,null,{"$f":"IF(COUNTIF('Teor A.'!F52:K52,\"Trein. Finalizado\")=3,\"Treinamento Finalizado\",IF(COUNTBLANK('Teor A.'!F52:K52)=6,\"* * * * *\",\"Em Treinamento\"))","v":"* * * * *"},null,null,{"$f":"IF(COUNTIF(Perfil!F49:O49,\"Trein. Finalizado\")=5,\"Treinamento Finalizado\",IF(COUNTBLANK(Perfil!F49:O49)=10,\"* * * * *\",\"Em Treinamento\"))","v":"Em Treinamento"},null,null,{"$f":"IF(COUNTIF(Perfil!F52:O52,\"Trein. Finalizado\")=5,\"Treinamento Finalizado\",IF(COUNTBLANK(Perfil!F52:O52)=10,\"* * * * *\",\"Em Treinamento\"))","v":"* * * * *"},null,null,{"$f":"IF(COUNTIF('Perda S.'!F49:O49,\"Trein. Finalizado\")=5,\"Treinamento Finalizado\",IF(COUNTBLANK('Perda S.'!F49:O49)=10,\"* * * * *\",\"Em Treinamento\"))","v":"* * * * *"},null,null,{"$f":"IF(COUNTIF('Perda S.'!F52:O52,\"Trein. Finalizado\")=5,\"Treinamento Finalizado\",IF(COUNTBLANK('Perda S.'!F52:O52)=10,\"* * * * *\",\"Em Treinamento\"))","v":"* * * * *"}]
[]
[null,null,null,null,null,null,null,null,null,null,null,null,null,null,null,null,null,null,null,null,null,null,null,null,null,null,null,"2023-07-16",null,null,"2023-07-16",null,null,null,null,null,null,null,null,"2023-07-16",null,null,"2023-07-16"]

{"sheet":"Geral","index":8,"n_rows":56,"n_cols":46,"rows_kept":56,"cut":false,"hidden":false,"merged":[[0,0,4,0],[0,2,4,53],[30,9,30,10],[27,9,27,10],[36,33,36,34],[39,33,39,34],[42,33,42,34],[45,31,45,32],[45,33,45,34],[12,37,12,38],[15,5,15,6],[15,7,15,8],[15,15,15,16],[12,35,12,36],[12,5,12,6],[12,7,12,8],[12,15,12,16],[12,17,12,18],[12,19,12,20],[12,21,12,22],[12,23,12,24],[15,27,15,28],[12,9,12,10],[12,11,12,12],[27,31,27,32],[39,15,39,16],[39,17,39,18],[39,19,39,20],[39,21,39,22],[36,19,36,20],[36,21,36,22],[33,27,33,28],[33,29,33,30],[33,31,33,32],[27,15,27,16],[27,17,27,18],[12,13,12,14],[12,33,12,34],[15,17,15,18],[15,19,15,20],[15,21,15,22],[15,23,15,24],[15,25,15,26],[12,25,12,26],[12,27,12,28],[12,29,12,30],[12,31,12,32],[18,19,18,20],[18,21,18,22],[18,23,18,24],[18,25,18,26],[15,29,15,30],[15,31,15,32],[15,35,15,36],[15,37,15,38],[18,5,18,6],[18,7,18,8],[18,15,18,16],[18,17,18,18],[18,31,18,32],[18,35,18,36],[18,37,18,38],[18,27,18,28],[18,29,18,30],[18,9,18,10],[15,11,15,12],[15,13,15,14],[18,11,18,12],[18,13,18,14],[15,9,15,10],[15,33,15,34],[21,31,21,32],[21,35,21,36],[21,37,21,38],[24,17,24,18],[24,19,24,20],[24,21,24,22],[24,23,24,24],[24,25,24,26],[21,17,21,18],[21,19,21,20],[24,27,24,28],[24,29,24,30],[24,31,24,32],[24,35,24,36],[24,37,24,38],[21,21,21,22],[21,23,21,24],[21,25,21,26],[24,5,24,6],[24,7,24,8],[24,15,24,16],[27,13,27,14],[21,27,21,28],[21,29,21,30],[21,5,21,6],[21,7,21,8],[21,15,21,16],[24,9,24,10],[24,11,24,12],[24,13,24,14],[21,11,21,12],[21,13,21,14],[21,9,21,10],[27,35,27,36],[27,37,27,38],[30,5,30,6],[30,7,30,8],[30,15,30,16],[30,17,30,18],[30,19,30,20],[30,21,30,22],[27,19,27,20],[27,21,27,22],[27,23,27,24],[27,25,27,26],[27,27,27,28],[27,29,27,30],[30,37,30,38],[30,23,30,24],[30,25,30,26],[30,27,30,28],[30,29,30,30],[30,31,30,32],[30,35,30,36],[27,11,27,12],[27,5,27,6],[27,7,27,8],[33,37,33,38],[36,5,36,6],[36,7,36,8],[36,15,36,16],[36,17,36,18],[36,31,36,32],[36,35,36,36],[36,37,36,38],[36,23,36,24],[36,25,36,26],[36,27,36,28],[36,29,36,30],[33,11,33,12],[33,13,33,14],[33,5,33,6],[33,7,33,8],[33,15,33,16],[33,17,33,18],[33,19,33,20],[33,21,33,22],[33,23,33,24],[33,25,33,26],[33,9,33,10],[39,37,39,38],[42,5,42,6],[42,7,42,8],[42,15,42,16],[42,17,42,18],[42,19,42,20],[42,21,42,22],[42,23,42,24],[42,25,42,26],[39,23,39,24],[39,25,39,26],[39,27,39,28],[39,29,39,30],[39,31,39,32],[39,35,39,36],[42,27,42,28],[42,29,42,30],[42,31,42,32],[42,35,42,36],[42,37,42,38],[39,11,39,12],[39,13,39,14],[39,5,39,6],[39,7,39,8],[45,5,45,6],[45,7,45,8],[45,15,45,16],[45,17,45,18],[45,35,45,36],[45,37,45,38],[48,5,48,6],[48,7,48,8],[48,15,48,16],[48,17,48,18],[48,19,48,20],[48,21,48,22],[45,19,45,20],[45,21,45,22],[45,23,45,24],[45,25,45,26],[45,27,45,28],[45,29,45,30],[48,37,48,38],[48,23,48,24],[48,25,48,26],[48,27,48,28],[48,29,48,30],[48,35,48,36],[51,37,51,38],[51,5,51,6],[51,7,51,8],[51,15,51,16],[51,17,51,18],[51,19,51,20],[51,21,51,22],[51,23,51,24],[51,25,51,26],[51,31,51,32],[51,33,51,34],[54,5,54,6],[54,7,54,8],[54,15,54,16],[54,17,54,18],[54,35,54,36],[54,37,54,38],[57,5,57,6],[57,7,57,8],[57,15,57,16],[57,17,57,18],[57,19,57,20],[57,21,57,22],[54,19,54,20],[54,21,54,22],[54,23,54,24],[54,25,54,26],[54,27,54,28],[54,29,54,30],[54,31,54,32],[54,33,54,34],[57,31,57,32],[57,33,57,34],[60,37,60,38],[57,37,57,38],[60,5,60,6],[60,7,60,8],[60,15,60,16],[60,17,60,18],[60,19,60,20],[60,21,60,22],[60,23,60,24],[60,25,60,26],[57,23,57,24],[57,25,57,26],[57,27,57,28],[57,29,57,30],[57,35,57,36],[57,11,57,12],[57,13,57,14],[60,31,60,32],[60,33,60,34],[42,11,42,12],[42,13,42,14],[36,11,36,12],[36,13,36,14],[30,11,30,12],[30,13,30,14],[60,27,60,28],[60,29,60,30],[60,35,60,36],[51,27,51,28],[51,29,51,30],[51,35,51,36],[33,35,33,36],[48,31,48,32],[48,33,48,34],[39,9,39,10],[42,9,42,10],[45,9,45,10],[48,9,48,10],[51,9,51,10],[54,9,54,10],[57,9,57,10],[60,9,60,10],[18,33,18,34],[21,33,21,34],[24,33,24,34],[27,33,27,34],[30,33,30,34],[33,33,33,34],[60,11,60,12],[60,13,60,14],[54,11,54,12],[54,13,54,14],[48,11,48,12],[48,13,48,14],[51,11,51,12],[51,13,51,14],[45,11,45,12],[45,13,45,14]]}
[]
[]
[]
[]
[]
[]
[]
[]
[]
[]
[]
[]
[null,null,null,null,null,"Trein. Finalizado",null,"Trein. Finalizado",null,"Trein. Finalizado",null,"Trein. Finalizado",null,"Trein. Finalizado",null,"Trein. Finalizado",null,"Trein. Finalizado",null,"Trein. Finalizado",null,"Trein. Finalizado",null,"Trein. Finalizado",null,"Trein. Finalizado",null,"Trein. Finalizado",null,"Trein. Finalizado",null,"Trein. Finalizado",null,"Trein. Finalizado",null,"Trein. Finalizado",null,"Trein. Finalizado"]
[]
[]
[null,null,null,null,null,"Trein. Finalizado",null,"Trein. Finalizado",null,"Em Treinamento",null,"Trein. Finalizado",null,"Em Treinamento",null,"Trein. Finalizado",null,"Trein. Finalizado",null,"Trein. Finalizado",null,"Trein. Finalizado",null,"Trein. Finalizado",null,"Trein. Finalizado",null,"Trein. Finalizado",null,"Trein. Finalizado",null,"Trein. Finalizado",null,"Em Treinamento",null,"Trein. Finalizado",null,"Trein. Finalizado"]
[]
[]
[null,null,null,null,null,"Trein. Finalizado",null,"Trein. Finalizado",null,"Trein. Finalizado",null,"Trein. Finalizado",null,"Trein. Finalizado",null,"Trein. Finalizado",null,"Trein. Finalizado",null,"Trein. Finalizado",null,"Trein. Finalizado",null,"Trein. Finalizado",null,"Trein. Finalizado",null,"Trein. Finalizado",null,"Trein. Finalizado",null,"Trein. Finalizado",null,"Trein. Finalizado",null,"Trein. Finalizado",null,"Trein. Finalizado"]
[]
[]
[null,null,null,null,null,"Trein. Finalizado",null,"Em Treinamento",null,"Trein. Finalizado",null,"Trein. Finalizado",null,"Trein. Finalizado",null,"Trein. Finalizado",null,"Trein. Finalizado",null,"Trein. Finalizado",null,"Trein. Finalizado",null,"Trein. Finalizado",null,"Trein. Finalizado",null,"Trein. Finalizado",null,"Trein. Finalizado",null,"Trein. Finalizado",null,"Trein. Finalizado",null,"Trein. Finalizado",null,"Trein. Finalizado"]
[]
[]
[null,null,null,null,null,"Trein. Finalizado",null,"Trein. Finalizado",null,"Trein. Finalizado",null,"Trein. Finalizado",null,"Trein. Finalizado",null,"Trein. Finalizado",null,"Trein. Finalizado",null,"Trein. Finalizado",null,"Trein. Finalizado",null,"Trein. Finalizado",null,"Trein. Finalizado",null,"Trein. Finalizado",null,"Trein. Finalizado",null,"Trein. Finalizado",null,"Trein. Finalizado",null,"Em Treinamento",null,"Trein. Finalizado"]
[]
[]
[null,null,null,null,null,"Trein. Finalizado",null,"Trein. Finalizado",null,null,null,"Trein. Finalizado",null,null,null,"Trein. Finalizado",null,"Trein. Finalizado",null,"Trein. Finalizado",null,"Trein. Finalizado",null,"Trein. Finalizado",null,"Trein. Finalizado",null,"Trein. Finalizado",null,"Trein. Finalizado",null,"Trein. Finalizado",null,null,null,"Trein. Finalizado",null,"Trein. Finalizado"]
[]
[]
[null,null,null,null,null,"Trein. Finalizado",null,"Trein. Finalizado",null,null,null,"Trein. Finalizado",null,null,null,"Trein. Finalizado",null,"Trein. Finalizado",null,"Trein. Finalizado",null,"Trein. Finalizado",null,"Trein. Finalizado",null,"Trein. Finalizado",null,"Trein. Finalizado",null,"Trein. Finalizado",null,"Em Treinamento",null,null,null,"Trein. Finalizado",null,"Trein. Finalizado"]
[]
[]
[null,null,null,null,null,"Trein. Finalizado",null,"Trein. Finalizado",null,null,null,"Trein. Finalizado",null,null,null,"Trein. Finalizado",null,"Trein. Finalizado",null,"Trein. Finalizado",null,"Trein. Finalizado",null,"Trein. Finalizado",null,"Trein. Finalizado",null,"Trein. Finalizado",null,"Trein. Finalizado",null,"Trein. Finalizado",null,null,null,"Trein. Finalizado",null,"Trein. Finalizado"]
[]
[]
[null,null,null,null,null,"Trein. Finalizado",null,"Trein. Finalizado",null,null,null,"Trein. Finalizado",null,null,null,"Trein. Finalizado",null,"Trein. Finalizado",null,"Trein. Finalizado",null,"Trein. Finalizado",null,"Trein. Finalizado",null,"Trein. Finalizado",null,"Trein. Finalizado",null,"Trein. Finalizado",null,"Trein. Finalizado",null,null,null,"Trein. Finalizado",null,"Trein. Finalizado"]
[]
[]
[null,null,null,null,null,"Trein. Finalizado",null,"Trein. Finalizado",null,null,null,"Trein. Finalizado",null,null,null,"Trein. Finalizado",null,"Trein. Finalizado",null,"Trein. Finalizado",null,"Trein. Finalizado",null,"Trein. Finalizado",null,"Trein. Finalizado",null,"Trein. Finalizado",null,"Trein. Finalizado",null,"Trein. Finalizado",null,null,null,"Trein. Finalizado",null,"Trein. Finalizado"]
[]
[]
[null,null,null,null,null,"Em Treinamento",null,"Em Treinamento",null,null,null,"Em Treinamento",null,null,null,"Em Treinamento",null,"Em Treinamento",null,"Em Treinamento",null,"Em Treinamento",null,"Em Treinamento",null,null,null,"Trein. Finalizado",null,"Em Treinamento",null,"Em Treinamento",null,null,null,"Em Treinamento",null,"Em Treinamento"]
[]
[]
[null,null,null,null,null,"Trein. Finalizado",null,"Trein. Finalizado",null,null,null,"Trein. Finalizado",null,null,null,"Trein. Finalizado",null,"Trein. Finalizado",null,"Trein. Finalizado",null,"Trein. Finalizado",null,"Trein. Finalizado",null,"Trein. Finalizado",null,"Trein. Finalizado",null,"Trein. Finalizado",null,"Trein. Finalizado",null,null,null,"Trein. Finalizado",null,"Trein. Finalizado"]
[]
[]
[null,null,null,null,null,"Em Treinamento",null,"Em Treinamento",null,null,null,"Em Treinamento",null,null,null,"Em Treinamento",null,"Em Treinamento",null,"Em Treinamento",null,"Em Treinamento",null,"Em Treinamento",null,"Em Treinamento",null,"Em Treinamento",null,"Em Treinamento",null,"Em Treinamento",null,null,null,"Em Treinamento",null,"Em Treinamento"]
[]
[]
[null,null,null,null,null,"Trein. Finalizado",null,"Trein. Finalizado",null,null,null,"Em Treinamento",null,null,null,"Em Treinamento",null,"Em Treinamento",null,"Trein. Finalizado",null,null,null,"Trein. Finalizado",null,"Em Treinamento",null,"Trein. Finalizado",null,"Em Treinamento",null,"Trein. Finalizado",null,null,null,"Trein. Finalizado",null,"Trein. Finalizado"]
[]
[]
[null,null,null,null,null,"Em Treinamento",null,"Em Treinamento",null,null,null,"Em Treinamento",null,null,null,"Em Treinamento",null,"Em Treinamento",null,"Em Treinamento",null,"Em Treinamento",null,"Em Treinamento",null,"Em Treinamento",null,"Em Treinamento",null,"Em Treinamento",null,"Em Treinamento",null,null,null,"Em Treinamento",null,"Em Treinamento",null,null,null,null,null,null,null,"Trein. Finalizado"]
[null,null,null,null,null,null,null,null,null,null,null,null,null,null,null,null,null,null,null,null,null,null,null,null,null,null,null,null,null,null,null,null,null,null,null,null,null,null,null,null,null,null,null,null,null,"Em Treinamento"]

{"sheet":"hplc","index":9,"n_rows":49,"n_cols":20,"rows_kept":49,"cut":false,"hidden":false,"merged":[[0,0,3,0],[15,7,15,8],[15,9,15,10],[15,11,15,12],[15,13,15,14],[12,5,12,6],[12,7,12,8],[12,9,12,10],[12,11,12,12],[12,13,12,14],[0,2,4,50],[15,15,15,16],[15,17,15,18],[15,19,15,20],[12,15,12,16],[12,17,12,18],[12,19,12,20],[15,5,15,6],[21,15,21,16],[21,17,21,18],[21,19,21,20],[18,15,18,16],[18,17,18,18],[18,19,18,20],[21,5,21,6],[21,7,21,8],[21,9,21,10],[21,11,21,12],[21,13,21,14],[18,5,18,6],[18,7,18,8],[18,9,18,10],[18,11,18,12],[18,13,18,14],[27,15,27,16],[27,17,27,18],[27,19,27,20],[24,15,24,16],[24,17,24,18],[24,19,24,20],[27,5,27,6],[27,7,27,8],[27,9,27,10],[27,11,27,12],[27,13,27,14],[24,5,24,6],[24,7,24,8],[24,9,24,10],[24,11,24,12],[24,13,24,14],[33,15,33,16],[33,17,33,18],[33,19,33,20],[30,15,30,16],[30,17,30,18],[30,19,30,20],[33,5,33,6],[33,7,33,8],[33,9,33,10],[33,11,33,12],[33,13,33,14],[30,5,30,6],[30,7,30,8],[30,9,30,10],[30,11,30,12],[30,13,30,14],[39,15,39,16],[39,17,39,18],[39,19,39,20],[42,5,42,6],[42,7,42,8],[42,11,42,12],[42,13,42,14],[36,15,36,16],[36,17,36,18],[36,19,36,20],[39,5,39,6],[39,7,39,8],[39,11,39,12],[39,13,39,14],[36,5,36,6],[36,7,36,8],[36,11,36,12],[36,13,36,14],[36,9,36,10],[39,9,39,10],[42,9,42,10],[42,15,42,16],[42,17,42,18],[42,19,42,20],[51,5,51,6],[51,7,51,8],[51,11,51,12],[51,13,51,14],[45,15,45,16],[45,17,45,18],[45,19,45,20],[48,5,48,6],[48,7,48,8],[48,11,48,12],[48,13,48,14],[45,5,45,6],[45,7,45,8],[45,11,45,12],[45,13,45,14],[45,9,45,10],[48,9,48,10],[51,9,51,10],[51,15,51,16],[51,17,51,18],[51,19,51,20],[48,15,48,16],[48,17,48,18],[48,19,48,20],[60,5,60,6],[60,7,60,8],[60,11,60,12],[60,13,60,14],[54,15,54,16],[54,17,54,18],[54,19,54,20],[57,5,57,6],[57,7,57,8],[57,11,57,12],[57,13,57,14],[54,5,54,6],[54,7,54,8],[54,11,54,12],[54,13,54,14],[54,9,54,10],[57,9,57,10],[60,9,60,10],[60,15,60,16],[60,17,60,18],[60,19,60,20],[57,15,57,16],[57,17,57,18],[57,19,57,20]]}
[]
[]
[]
[]
[]
[]
[]
[]
[]
[]
[]
[]
[null,null,null,null,null,"Trein. Finalizado",null,"Trein. Finalizado",null,"Trein. Finalizado",null,"Trein. Finalizado",null,"Trein. Finalizado",null,"Trein. Finalizado",null,"Trein. Finalizado",null,"Trein. Finalizado"]
[]
[]
[null,null,null,null,null,"Trein. Finalizado",null,"Em Treinamento",null,"Em Treinamento",null,"Trein. Finalizado",null,"Em Treinamento",null,"Em Treinamento",null,"Em Treinamento",null,"Trein. Finalizado"]
[]
[]
[null,null,null,null,null,"Em Treinamento",null,"Em Treinamento",null,"Em Treinamento",null,"Em Treinamento",null,null,null,"Em Treinamento",null,"Em Treinamento",null,"Em Treinamento"]
[]
[]
[null,null,null,null,null,"Trein. Finalizado",null,"Trein. Finalizado",null,"Trein. Finalizado",null,"Trein. Finalizado",null,"Em Treinamento",null,"Em Treinamento",null,"Trein. Finalizado"]
[]
[]
[null,null,null,null,null,"Trein. Finalizado",null,"Trein. Finalizado",null,"Trein. Finalizado",null,"Trein. Finalizado",null,"Trein. Finalizado",null,"Trein. Finalizado",null,"Trein. Finalizado",null,"Trein. Finalizado"]
[]
[]
[]
[]
[]
[null,null,null,null,null,"Trein. Finalizado",null,"Trein. Finalizado",null,"Trein. Finalizado",null,"Trein. Finalizado",null,"Trein. Finalizado",null,"Trein. Finalizado",null,"Trein. Finalizado",null,"Trein. Finalizado"]
[]
[]
[]
[]
[]
[null,null,null,null,null,"Em Treinamento",null,null,null,null,null,"Em Treinamento"]
[]
[]
[null,null,null,null,null,"Trein. Finalizado",null,"Trein. Finalizado",null,"Trein. Finalizado",null,"Trein. Finalizado",null,"Trein. Finalizado",null,"Trein. Finalizado",null,"Trein. Finalizado",null,"Trein. Finalizado"]
[]
[]
[null,null,null,null,null,"Em Treinamento",null,"Em Treinamento",null,null,null,"Em Treinamento",null,null,null,"Em Treinamento",null,null,null,"Em Treinamento"]
[]
[]
[]
[]
[]
[null,null,null,null,null,"Em Treinamento",null,null,null,null,null,"Em Treinamento",null,null,null,null,null,null,null,"Em Treinamento"]

{"sheet":"Espectro","index":10,"n_rows":43,"n_cols":12,"rows_kept":43,"cut":false,"hidden":false,"merged":[[0,0,3,0],[0,2,3,33],[12,11,12,12],[15,5,15,6],[15,7,15,8],[15,9,15,10],[15,11,15,12],[12,5,12,6],[12,7,12,8],[12,9,12,10],[18,11,18,12],[21,5,21,6],[21,7,21,8],[21,9,21,10],[21,11,21,12],[18,5,18,6],[18,7,18,8],[18,9,18,10],[24,11,24,12],[27,5,27,6],[27,7,27,8],[27,9,27,10],[27,11,27,12],[24,5,24,6],[24,7,24,8],[24,9,24,10],[30,11,30,12],[33,5,33,6],[33,7,33,8],[33,9,33,10],[33,11,33,12],[30,5,30,6],[30,7,30,8],[30,9,30,10],[36,11,36,12],[39,5,39,6],[39,7,39,8],[39,9,39,10],[39,11,39,12],[36,5,36,6],[36,7,36,8],[36,9,36,10],[42,11,42,12],[45,5,45,6],[45,7,45,8],[45,9,45,10],[45,11,45,12],[42,5,42,6],[42,7,42,8],[42,9,42,10],[48,11,48,12],[51,5,51,6],[51,7,51,8],[51,9,51,10],[51,11,51,12],[48,5,48,6],[48,7,48,8],[48,9,48,10],[60,11,60,12],[60,5,60,6],[60,7,60,8],[60,9,60,10],[54,11,54,12],[57,5,57,6],[57,7,57,8],[57,9,57,10],[57,11,57,12],[54,5,54,6],[54,7,54,8],[54,9,54,10]]}
[]
[]
[]
[]
[]
[]
[]
[]
[]
[]
[]
[]
[null,null,null,null,null,"Trein. Finalizado",null,"Trein. Finalizado",null,"Trein. Finalizado",null,"Trein. Finalizado"]
[]
[]
[null,null,null,null,null,"Trein. Finalizado",null,"Trein. Finalizado",null,"Trein. Finalizado"]
[]
[]
[null,null,null,null,null,"Em Treinamento",null,"Em Treinamento",null,"Em Treinamento",null,"Em Treinamento"]
[]
[]
[null,null,null,null,null,"Trein. Finalizado",null,"Trein. Finalizado",null,"Trein. Finalizado",null,"Em Treinamento"]
[]
[]
[null,null,null,null,null,"Trein. Finalizado",null,"Trein. Finalizado",null,"Trein. Finalizado",null,"Em Treinamento"]
[]
[]
[]
[]
[]
[null,null,null,null,null,"Trein. Finalizado",null,"Trein. Finalizado",null,"Trein. Finalizado",null,"Trein. Finalizado"]
[]
[]
[]
[]
[]
[null,null,null,null,null,"Trein. Finalizado",null,"Trein. Finalizado",null,"Em Treinamento",null,"Trein. Finalizado"]
[]
[]
[null,null,null,null,null,"Trein. Finalizado",null,"Trein. Finalizado",null,"Trein. Finalizado",null,"Trein. Finalizado"]
[]
[]
[null,null,null,null,null,"Em Treinamento",null,null,null,null,null,"Em Treinamento"]

{"sheet":"Karl fischer","index":11,"n_rows":52,"n_cols":12,"rows_kept":52,"cut":false,"hidden":false,"merged":[[0,0,3,0],[51,5,51,6],[51,7,51,8],[51,9,51,10],[51,11,51,12],[0,2,3,62],[12,5,12,6],[12,7,12,8],[12,9,12,10],[12,11,12,12],[15,5,15,6],[15,7,15,8],[15,9,15,10],[15,11,15,12],[18,5,18,6],[18,7,18,8],[18,9,18,10],[18,11,18,12],[21,5,21,6],[21,7,21,8],[21,9,21,10],[21,11,21,12],[24,5,24,6],[24,7,24,8],[24,9,24,10],[24,11,24,12],[27,5,27,6],[27,7,27,8],[27,9,27,10],[27,11,27,12],[30,5,30,6],[30,7,30,8],[30,9,30,10],[30,11,30,12],[33,5,33,6],[33,7,33,8],[33,9,33,10],[33,11,33,12],[36,5,36,6],[36,7,36,8],[36,9,36,10],[36,11,36,12],[39,5,39,6],[39,7,39,8],[39,9,39,10],[39,11,39,12],[48,5,48,6],[48,7,48,8],[48,9,48,10],[48,11,48,12],[42,5,42,6],[42,7,42,8],[42,9,42,10],[42,11,42,12],[45,5,45,6],[45,7,45,8],[45,9,45,10],[45,11,45,12],[60,5,60,6],[60,7,60,8],[60,9,60,10],[60,11,60,12],[57,5,57,6],[57,7,57,8],[57,9,57,10],[57,11,57,12]]}
[]
[]
[]
[]
[]
[]
[]
[]
[]
[]
[]
[]
[null,null,null,null,null,"Trein. Finalizado",null,"Trein. Finalizado",null,"Trein. Finalizado",null,"Trein. Finalizado"]
[]
[]
[null,null,null,null,null,"Trein. Finalizado",null,"Trein. Finalizado",null,"Trein. Finalizado",null,"Trein. Finalizado"]
[]
[]
[null,null,null,null,null,"Trein. Finalizado",null,"Trein. Finalizado",null,"Trein. Finalizado",null,"Trein. Finalizado"]
[]
[]
[null,null,null,null,null,"Trein. Finalizado",null,"Trein. Finalizado",null,"Trein. Finalizado",null,"Trein. Finalizado"]
[]
[]
[null,null,null,null,null,"Trein. Finalizado",null,"Trein. Finalizado",null,"Trein. Finalizado",null,"Trein. Finalizado"]
[]
[]
[null,null,null,null,null,"Trein. Finalizado",null,"Trein. Finalizado",null,"Trein. Finalizado",null,"Trein. Finalizado"]
[]
[]
[null,null,null,null,null,"Trein. Finalizado",null,"Trein. Finalizado",null,"Trein. Finalizado",null,"Trein. Finalizado"]
[]
[]
[]
[]
[]
[null,null,null,null,null,"Trein. Finalizado",null,"Trein. Finalizado",null,"Trein. Finalizado",null,"Trein. Finalizado"]
[]
[]
[null,null,null,null,null,"Trein. Finalizado",null,"Trein. Finalizado",null,"Trein. Finalizado",null,"Trein. Finalizado"]
[]
[]
[null,null,null,null,null,"Trein. Finalizado",null,"Trein. Finalizado",null,"Trein. Finalizado",null,"Trein. Finalizado"]
[]
[]
[]
[]
[]
[null,null,null,null,null,"Trein. Finalizado",null,"Trein. Finalizado",null,"Trein. Finalizado",null,"Trein. Finalizado"]
[]
[]
[null,null,null,null,null,"Trein. Finalizado",null,"Trein. Finalizado",null,"Trein. Finalizado",null,"Trein. Finalizado"]

{"sheet":"Agua","index":12,"n_rows":49,"n_cols":12,"rows_kept":49,"cut":false,"hidden":false,"merged":[[0,0,3,0],[51,5,51,6],[51,7,51,8],[51,9,51,10],[51,11,51,12],[18,11,18,12],[21,5,21,6],[21,7,21,8],[21,9,21,10],[21,11,21,12],[24,5,24,6],[24,7,24,8],[24,9,24,10],[24,11,24,12],[27,5,27,6],[27,7,27,8],[54,5,54,6],[54,7,54,8],[54,9,54,10],[54,11,54,12],[0,2,3,53],[12,5,12,6],[12,7,12,8],[12,9,12,10],[12,11,12,12],[15,5,15,6],[15,7,15,8],[15,9,15,10],[15,11,15,12],[18,5,18,6],[18,7,18,8],[18,9,18,10],[27,9,27,10],[27,11,27,12],[30,5,30,6],[30,7,30,8],[30,9,30,10],[30,11,30,12],[33,5,33,6],[33,7,33,8],[33,9,33,10],[33,11,33,12],[36,5,36,6],[36,7,36,8],[36,9,36,10],[36,11,36,12],[39,5,39,6],[39,7,39,8],[39,9,39,10],[39,11,39,12],[42,5,42,6],[42,7,42,8],[42,9,42,10],[42,11,42,12],[45,5,45,6],[45,7,45,8],[45,9,45,10],[45,11,45,12],[60,5,60,6],[60,7,60,8],[60,9,60,10],[60,11,60,12],[48,5,48,6],[48,7,48,8],[48,9,48,10],[48,11,48,12],[57,5,57,6],[57,7,57,8],[57,9,57,10],[57,11,57,12]]}
[]
[]
[]
[]
[]
[]
[]
[]
[]
[]
[]
[]
[null,null,null,null,null,"Trein. Finalizado",null,"Trein. Finalizado",null,"Trein. Finalizado",null,"Trein. Finalizado"]
[]
[]
[null,null,null,null,null,"Trein. Finalizado",null,"Trein. Finalizado",null,"Em Treinamento",null,"Trein. Finalizado"]
[]
[]
[null,null,null,null,null,"Trein. Finalizado",null,"Trein. Finalizado",null,"Trein. Finalizado",null,"Trein. Finalizado"]
[]
[]
[null,null,null,null,null,"Trein. Finalizado",null,"Em Treinamento",null,"Trein. Finalizado",null,"Trein. Finalizado"]
[]
[]
[null,null,null,null,null,"Trein. Finalizado",null,"Trein. Finalizado",null,"Trein. Finalizado",null,"Em Treinamento"]
[]
[]
[null,null,null,null,null,"Trein. Finalizado",null,"Trein. Finalizado",null,null,null,"Trein. Finalizado"]
[]
[]
[null,null,null,null,null,"Trein. Finalizado",null,"Trein. Finalizado",null,null,null,"Trein. Finalizado"]
[]
[]
[null,null,null,null,null,"Trein. Finalizado",null,"Trein. Finalizado",null,null,null,"Trein. Finalizado"]
[]
[]
[null,null,null,null,null,"Trein. Finalizado",null,"Trein. Finalizado",null,null,null,"Trein. Finalizado"]
[]
[]
[null,null,null,null,null,"Trein. Finalizado",null,"Trein. Finalizado",null,null,null,"Trein. Finalizado"]
[]
[]
[null,null,null,null,null,"Em Treinamento",null,"Em Treinamento",null,null,null,"Em Treinamento"]
[]
[]
[null,null,null,null,null,"Trein. Finalizado",null,"Trein. Finalizado",null,null,null,"Trein. Finalizado"]
[]
[]
[null,null,null,null,null,"Em Treinamento",null,"Em Treinamento",null,null,null,"Em Treinamento"]

{"sheet":"Titulação","index":13,"n_rows":52,"n_cols":12,"rows_kept":52,"cut":false,"hidden":false,"merged":[[0,0,3,0],[51,5,51,6],[51,7,51,8],[51,9,51,10],[51,11,51,12],[18,11,18,12],[21,5,21,6],[21,7,21,8],[21,9,21,10],[21,11,21,12],[24,5,24,6],[24,7,24,8],[24,9,24,10],[24,11,24,12],[27,5,27,6],[27,7,27,8],[54,5,54,6],[54,7,54,8],[54,9,54,10],[54,11,54,12],[0,2,3,65],[12,5,12,6],[12,7,12,8],[12,9,12,10],[12,11,12,12],[15,5,15,6],[15,7,15,8],[15,9,15,10],[15,11,15,12],[18,5,18,6],[18,7,18,8],[18,9,18,10],[27,9,27,10],[27,11,27,12],[30,5,30,6],[30,7,30,8],[30,9,30,10],[30,11,30,12],[33,5,33,6],[33,7,33,8],[33,9,33,10],[33,11,33,12],[36,5,36,6],[36,7,36,8],[36,9,36,10],[36,11,36,12],[39,5,39,6],[39,7,39,8],[39,9,39,10],[39,11,39,12],[42,5,42,6],[42,7,42,8],[42,9,42,10],[42,11,42,12],[45,5,45,6],[45,7,45,8],[45,9,45,10],[45,11,45,12],[60,5,60,6],[60,7,60,8],[60,9,60,10],[60,11,60,12],[48,5,48,6],[48,7,48,8],[48,9,48,10],[48,11,48,12],[57,5,57,6],[57,7,57,8],[57,9,57,10],[57,11,57,12]]}
[]
[]
[]
[]
[]
[]
[]
[]
[]
[]
[]
[]
[null,null,null,null,null,"Trein. Finalizado",null,"Trein. Finalizado",null,"Trein. Finalizado",null,"Trein. Finalizado"]
[]
[]
[null,null,null,null,null,"Trein. Finalizado",null,"Trein. Finalizado",null,"Trein. Finalizado",null,"Trein. Finalizado"]
[]
[]
[null,null,null,null,null,"Trein. Finalizado",null,"Trein. Finalizado",null,"Trein. Finalizado",null,"Trein. Finalizado"]
[]
[]
[null,null,null,null,null,"Trein. Finalizado",null,"Trein. Finalizado",null,"Trein. Finalizado",null,"Trein. Finalizado"]
[]
[]
[null,null,null,null,null,"Trein. Finalizado",null,"Trein. Finalizado",null,"Trein. Finalizado",null,"Trein. Finalizado"]
[]
[]
[null,null,null,null,null,"Trein. Finalizado",null,"Trein. Finalizado",null,"Trein. Finalizado",null,"Trein. Finalizado"]
[]
[]
[null,null,null,null,null,"Trein. Finalizado",null,"Trein. Finalizado",null,"Trein. Finalizado",null,"Trein. Finalizado"]
[]
[]
[]
[]
[]
[null,null,null,null,null,"Trein. Finalizado",null,"Trein. Finalizado",null,"Trein. Finalizado",null,"Trein. Finalizado"]
[]
[]
[null,null,null,null,null,"Trein. Finalizado",null,"Trein. Finalizado",null,"Trein. Finalizado",null,"Trein. Finalizado"]
[]
[]
[null,null,null,null,null,"Trein. Finalizado",null,"Trein. Finalizado",null,"Trein. Finalizado",null,"Trein. Finalizado"]
[]
[]
[null,null,null,null,null,"Trein. Finalizado",null,"Trein. Finalizado",null,"Trein. Finalizado",null,"Trein. Finalizado"]
[]
[]
[null,null,null,null,null,"Trein. Finalizado",null,"Trein. Finalizado",null,"Trein. Finalizado",null,"Trein. Finalizado"]
[]
[]
[null,null,null,null,null,"Trein. Finalizado",null,"Trein. Finalizado",null,"Trein. Finalizado",null,"Trein. Finalizado"]

{"sheet":"Peso Medio","index":14,"n_rows":49,"n_cols":12,"rows_kept":49,"cut":false,"hidden":false,"merged":[[0,0,3,0],[51,5,51,6],[51,7,51,8],[51,9,51,10],[51,11,51,12],[18,11,18,12],[21,5,21,6],[21,7,21,8],[21,9,21,10],[21,11,21,12],[24,5,24,6],[24,7,24,8],[24,9,24,10],[24,11,24,12],[27,5,27,6],[27,7,27,8],[54,5,54,6],[54,7,54,8],[54,9,54,10],[54,11,54,12],[0,2,3,46],[12,5,12,6],[12,7,12,8],[12,9,12,10],[12,11,12,12],[15,5,15,6],[15,7,15,8],[15,9,15,10],[15,11,15,12],[18,5,18,6],[18,7,18,8],[18,9,18,10],[27,9,27,10],[27,11,27,12],[30,5,30,6],[30,7,30,8],[30,9,30,10],[30,11,30,12],[33,5,33,6],[33,7,33,8],[33,9,33,10],[33,11,33,12],[36,5,36,6],[36,7,36,8],[36,9,36,10],[36,11,36,12],[39,5,39,6],[39,7,39,8],[39,9,39,10],[39,11,39,12],[42,5,42,6],[42,7,42,8],[42,9,42,10],[42,11,42,12],[45,5,45,6],[45,7,45,8],[45,9,45,10],[45,11,45,12],[60,5,60,6],[60,7,60,8],[60,9,60,10],[60,11,60,12],[48,5,48,6],[48,7,48,8],[48,9,48,10],[48,11,48,12],[57,5,57,6],[57,7,57,8],[57,9,57,10],[57,11,57,12]]}
[]
[]
[]
[]
[]
[]
[]
[]
[]
[]
[]
[]
[null,null,null,null,null,"Trein. Finalizado",null,"Trein. Finalizado",null,"Trein. Finalizado",null,"Trein. Finalizado"]
[]
[]
[null,null,null,null,null,"Trein. Finalizado",null,"Trein. Finalizado",null,"Trein. Finalizado",null,"Trein. Finalizado"]
[]
[]
[null,null,null,null,null,"Trein. Finalizado",null,"Trein. Finalizado",null,"Trein. Finalizado",null,"Trein. Finalizado"]
[]
[]
[null,null,null,null,null,"Trein. Finalizado",null,"Em Treinamento",null,"Trein. Finalizado",null,"Trein. Finalizado"]
[]
[]
[null,null,null,null,null,"Trein. Finalizado",null,"Trein. Finalizado",null,"Trein. Finalizado",null,"Em Treinamento"]
[]
[]
[null,null,null,null,null,"Trein. Finalizado",null,"Trein. Finalizado",null,null,null,"Trein. Finalizado"]
[]
[]
[null,null,null,null,null,"Trein. Finalizado",null,"Trein. Finalizado",null,null,null,"Trein. Finalizado"]
[]
[]
[null,null,null,null,null,"Trein. Finalizado",null,"Trein. Finalizado",null,null,null,"Trein. Finalizado"]
[]
[]
[null,null,null,null,null,"Trein. Finalizado",null,"Trein. Finalizado",null,null,null,"Trein. Finalizado"]
[]
[]
[null,null,null,null,null,"Trein. Finalizado",null,"Trein. Finalizado",null,null,null,"Trein. Finalizado"]
[]
[]
[null,null,null,null,null,"Em Treinamento",null,"Em Treinamento",null,null,null,"Em Treinamento"]
[]
[]
[null,null,null,null,null,"Trein. Finalizado",null,"Trein. Finalizado",null,null,null,"Trein. Finalizado"]
[]
[]
[null,null,null,null,null,"Em Treinamento",null,"Em Treinamento",null,null,null,"Em Treinamento"]

{"sheet":"Validação","index":15,"n_rows":49,"n_cols":16,"rows_kept":49,"cut":false,"hidden":false,"merged":[[0,0,3,0],[12,5,12,6],[12,7,12,8],[12,9,12,10],[12,11,12,12],[12,13,12,14],[12,15,12,16],[0,2,3,62],[18,5,18,6],[18,7,18,8],[18,9,18,10],[18,11,18,12],[18,13,18,14],[18,15,18,16],[15,5,15,6],[15,7,15,8],[15,9,15,10],[15,11,15,12],[15,13,15,14],[15,15,15,16],[24,5,24,6],[24,7,24,8],[24,9,24,10],[24,11,24,12],[24,13,24,14],[24,15,24,16],[21,5,21,6],[21,7,21,8],[21,9,21,10],[21,11,21,12],[21,13,21,14],[21,15,21,16],[30,5,30,6],[30,7,30,8],[30,9,30,10],[30,11,30,12],[30,13,30,14],[30,15,30,16],[27,5,27,6],[27,7,27,8],[27,9,27,10],[27,11,27,12],[27,13,27,14],[27,15,27,16],[36,5,36,6],[36,7,36,8],[36,9,36,10],[36,11,36,12],[36,13,36,14],[36,15,36,16],[33,5,33,6],[33,7,33,8],[33,9,33,10],[33,11,33,12],[33,13,33,14],[33,15,33,16],[42,5,42,6],[42,7,42,8],[42,9,42,10],[42,11,42,12],[42,13,42,14],[42,15,42,16],[39,5,39,6],[39,7,39,8],[39,9,39,10],[39,11,39,12],[39,13,39,14],[39,15,39,16],[48,5,48,6],[48,7,48,8],[48,9,48,10],[48,11,48,12],[48,13,48,14],[48,15,48,16],[45,5,45,6],[45,7,45,8],[45,9,45,10],[45,11,45,12],[45,13,45,14],[45,15,45,16],[54,5,54,6],[54,7,54,8],[54,9,54,10],[54,11,54,12],[54,13,54,14],[54,15,54,16],[51,5,51,6],[51,7,51,8],[51,9,51,10],[51,11,51,12],[51,13,51,14],[51,15,51,16],[60,5,60,6],[60,7,60,8],[60,9,60,10],[60,11,60,12],[60,13,60,14],[60,15,60,16],[57,5,57,6],[57,7,57,8],[57,9,57,10],[57,11,57,12],[57,13,57,14],[57,15,57,16]]}
[]
[]
[]
[]
[]
[]
[]
[]
[]
[]
[]
[]
[null,null,null,null,null,"Trein. Finalizado",null,"Trein. Finalizado",null,"Trein. Finalizado",null,"Trein. Finalizado",null,"Trein. Finalizado",null,"Trein. Finalizado"]
[]
[]
[null,null,null,null,null,"Trein. Finalizado",null,"Trein. Finalizado",null,"Em Treinamento",null,"Trein. Finalizado",null,"Em Treinamento",null,"Trein. Finalizado"]
[]
[]
[null,null,null,null,null,"Trein. Finalizado",null,"Trein. Finalizado",null,"Trein. Finalizado",null,"Trein. Finalizado",null,"Trein. Finalizado",null,"Trein. Finalizado"]
[]
[]
[null,null,null,null,null,"Trein. Finalizado",null,"Em Treinamento",null,"Trein. Finalizado",null,"Trein. Finalizado",null,"Trein. Finalizado",null,"Trein. Finalizado"]
[]
[]
[null,null,null,null,null,"Trein. Finalizado",null,"Trein. Finalizado",null,"Trein. Finalizado",null,"Trein. Finalizado",null,"Trein. Finalizado",null,"Em Treinamento"]
[]
[]
[null,null,null,null,null,"Trein. Finalizado",null,"Trein. Finalizado",null,null,null,"Trein. Finalizado",null,null,null,"Trein. Finalizado"]
[]
[]
[null,null,null,null,null,"Trein. Finalizado",null,"Trein. Finalizado",null,null,null,"Em Treinamento",null,null,null,"Trein. Finalizado"]
[]
[]
[null,null,null,null,null,"Trein. Finalizado",null,"Trein. Finalizado",null,null,null,"Trein. Finalizado",null,null,null,"Trein. Finalizado"]
[]
[]
[null,null,null,null,null,"Trein. Finalizado",null,"Trein. Finalizado",null,null,null,"Trein. Finalizado",null,null,null,"Trein. Finalizado"]
[]
[]
[null,null,null,null,null,"Trein. Finalizado",null,"Trein. Finalizado",null,null,null,"Trein. Finalizado",null,null,null,"Trein. Finalizado"]
[]
[]
[null,null,null,null,null,"Em Treinamento",null,"Em Treinamento",null,null,null,"Em Treinamento",null,null,null,"Em Treinamento"]
[]
[]
[null,null,null,null,null,"Trein. Finalizado",null,"Trein. Finalizado",null,null,null,"Trein. Finalizado",null,null,null,"Trein. Finalizado"]
[]
[]
[null,null,null,null,null,"Em Treinamento",null,"Em Treinamento",null,null,null,"Em Treinamento",null,null,null,"Em Treinamento"]

{"sheet":"Teor A.","index":16,"n_rows":49,"n_cols":47,"rows_kept":49,"cut":false,"hidden":false,"merged":[[0,0,3,0],[0,2,3,47],[12,5,12,6],[12,7,12,8],[12,9,12,10],[15,5,15,6],[15,7,15,8],[15,9,15,10],[18,5,18,6],[18,7,18,8],[18,9,18,10],[21,5,21,6],[21,7,21,8],[21,9,21,10],[24,5,24,6],[24,7,24,8],[24,9,24,10],[27,5,27,6],[27,7,27,8],[27,9,27,10],[30,5,30,6],[30,7,30,8],[30,9,30,10],[33,5,33,6],[33,7,33,8],[33,9,33,10],[36,5,36,6],[36,7,36,8],[36,9,36,10],[39,5,39,6],[39,7,39,8],[39,9,39,10],[42,5,42,6],[42,7,42,8],[42,9,42,10],[60,5,60,6],[60,7,60,8],[60,9,60,10],[48,5,48,6],[48,7,48,8],[48,9,48,10],[57,5,57,6],[57,7,57,8],[57,9,57,10],[51,5,51,6],[51,7,51,8],[51,9,51,10],[54,5,54,6],[54,7,54,8],[54,9,54,10],[45,5,45,6],[45,7,45,8],[45,9,45,10]]}
[]
[]
[]
[]
[]
[]
[]
[]
[]
[]
[]
[]
[null,null,null,null,null,"Trein. Finalizado",null,"Trein. Finalizado",null,"Trein. Finalizado"]
[]
[]
[null,null,null,null,null,"Trein. Finalizado",null,"Em Treinamento",null,"Trein. Finalizado"]
[]
[]
[null,null,null,null,null,"Trein. Finalizado",null,"Trein. Finalizado",null,"Trein. Finalizado"]
[]
[]
[null,null,null,null,null,"Trein. Finalizado",null,"Trein. Finalizado",null,"Trein. Finalizado"]
[]
[]
[null,null,null,null,null,"Trein. Finalizado",null,"Trein. Finalizado",null,"Em Treinamento"]
[null,null,null,null,null,null,null,null,null,null,null,null,null,null,null,null,null,null,null,null,null,null,null,null,null,null,null,null,null,null,null,null,null,null,null,null,null,null,null,null,null,null,null,null,null,null,{"$f":"IF('Teor A.'!F34<>\"Trein. Finalizado\",\"Em Treinamento\",IF('Teor A.'!#REF!<>\"Trein. Finalizado\",\"Em Treinamento\",IF('Teor A.'!H34<>\"Trein. Finalizado\",\"Em Treinamento\",IF(Titulação!R34<>\"Trein. Finalizado\",\"Em Treinamento\",\"Treinamento Finalizado\"))))","v":{"$error":"#REF!"}}]
[]
[null,null,null,null,null,"Trein. Finalizado",null,null,null,"Trein. Finalizado"]
[]
[]
[null,null,null,null,null,"Trein. Finalizado",null,null,null,"Trein. Finalizado"]
[]
[]
[null,null,null,null,null,"Trein. Finalizado",null,null,null,"Trein. Finalizado"]
[]
[]
[null,null,null,null,null,"Trein. Finalizado",null,null,null,"Trein. Finalizado"]
[]
[]
[null,null,null,null,null,"Trein. Finalizado",null,null,null,"Trein. Finalizado"]
[]
[]
[null,null,null,null,null,"Em Treinamento",null,null,null,"Em Treinamento"]
[]
[]
[null,null,null,null,null,"Trein. Finalizado",null,null,null,"Trein. Finalizado"]
[]
[]
[null,null,null,null,null,"Em Treinamento",null,null,null,"Em Treinamento"]

{"sheet":"Perfil","index":17,"n_rows":49,"n_cols":14,"rows_kept":49,"cut":false,"hidden":false,"merged":[[0,0,3,0],[0,2,3,61],[12,5,12,6],[12,7,12,8],[12,9,12,10],[12,11,12,12],[12,13,12,14],[15,5,15,6],[15,7,15,8],[15,9,15,10],[15,11,15,12],[15,13,15,14],[18,5,18,6],[18,7,18,8],[18,9,18,10],[18,11,18,12],[18,13,18,14],[21,5,21,6],[21,7,21,8],[21,9,21,10],[21,11,21,12],[21,13,21,14],[24,5,24,6],[24,7,24,8],[24,9,24,10],[24,11,24,12],[24,13,24,14],[27,5,27,6],[27,7,27,8],[27,9,27,10],[27,11,27,12],[27,13,27,14],[30,5,30,6],[30,7,30,8],[30,9,30,10],[30,11,30,12],[30,13,30,14],[33,5,33,6],[33,7,33,8],[33,9,33,10],[33,11,33,12],[33,13,33,14],[36,5,36,6],[36,7,36,8],[36,9,36,10],[36,11,36,12],[36,13,36,14],[39,5,39,6],[39,7,39,8],[39,9,39,10],[39,11,39,12],[39,13,39,14],[42,5,42,6],[42,7,42,8],[42,9,42,10],[42,11,42,12],[42,13,42,14],[45,5,45,6],[45,7,45,8],[45,9,45,10],[45,11,45,12],[45,13,45,14],[48,5,48,6],[48,7,48,8],[48,9,48,10],[48,11,48,12],[48,13,48,14],[51,5,51,6],[51,7,51,8],[51,9,51,10],[51,11,51,12],[51,13,51,14],[48,15,48,16],[60,5,60,6],[60,7,60,8],[60,9,60,10],[60,11,60,12],[60,13,60,14],[57,5,57,6],[57,7,57,8],[57,9,57,10],[57,11,57,12],[57,13,57,14],[54,5,54,6],[54,7,54,8],[54,9,54,10],[54,11,54,12],[54,13,54,14]]}
[]
[]
[]
[]
[]
[]
[]
[]
[]
[]
[]
[]
[null,null,null,null,null,"Trein. Finalizado",null,"Trein. Finalizado",null,"Trein. Finalizado",null,"Trein. Finalizado",null,"Trein. Finalizado"]
[]
[]
[null,null,null,null,null,"Trein. Finalizado",null,"Trein. Finalizado",null,"Em Treinamento",null,"Trein. Finalizado",null,"Em Treinamento"]
[]
[]
[null,null,null,null,null,"Trein. Finalizado",null,"Trein. Finalizado",null,"Trein. Finalizado",null,"Trein. Finalizado",null,"Trein. Finalizado"]
[]
[]
[null,null,null,null,null,"Trein. Finalizado",null,"Em Treinamento",null,"Trein. Finalizado",null,"Trein. Finalizado",null,"Trein. Finalizado"]
[]
[]
[null,null,null,null,null,"Trein. Finalizado",null,"Trein. Finalizado",null,"Trein. Finalizado",null,"Trein. Finalizado",null,"Trein. Finalizado"]
[]
[]
[null,null,null,null,null,"Trein. Finalizado",null,"Trein. Finalizado",null,null,null,"Trein. Finalizado"]
[]
[]
[null,null,null,null,null,"Trein. Finalizado",null,"Trein. Finalizado",null,null,null,"Trein. Finalizado"]
[]
[]
[null,null,null,null,null,"Trein. Finalizado",null,"Trein. Finalizado",null,null,null,"Trein. Finalizado"]
[]
[]
[null,null,null,null,null,"Trein. Finalizado",null,"Trein. Finalizado",null,null,null,"Trein. Finalizado"]
[]
[]
[null,null,null,null,null,"Trein. Finalizado",null,"Trein. Finalizado",null,null,null,"Trein. Finalizado"]
[]
[]
[null,null,null,null,null,"Em Treinamento",null,"Em Treinamento",null,null,null,"Em Treinamento"]
[]
[]
[null,null,null,null,null,"Trein. Finalizado",null,"Trein. Finalizado",null,null,null,"Trein. Finalizado"]
[]
[]
[null,null,null,null,null,"Em Treinamento",null,"Em Treinamento",null,null,null,"Em Treinamento"]

{"sheet":"Perda S.","index":18,"n_rows":0,"n_cols":0,"rows_kept":0,"cut":false,"hidden":false,"merged":[[0,0,3,0],[60,5,60,6],[60,7,60,8],[60,9,60,10],[60,11,60,12],[42,5,42,6],[42,7,42,8],[42,9,42,10],[42,11,42,12],[36,5,36,6],[36,7,36,8],[36,9,36,10],[36,11,36,12],[30,5,30,6],[30,7,30,8],[30,9,30,10],[60,13,60,14],[0,2,3,36],[54,5,54,6],[54,7,54,8],[54,9,54,10],[54,11,54,12],[54,13,54,14],[48,5,48,6],[48,7,48,8],[48,9,48,10],[48,11,48,12],[48,13,48,14],[51,5,51,6],[51,7,51,8],[51,9,51,10],[51,11,51,12],[51,13,51,14],[57,5,57,6],[57,7,57,8],[57,9,57,10],[57,11,57,12],[57,13,57,14],[42,13,42,14],[45,5,45,6],[45,7,45,8],[45,9,45,10],[45,11,45,12],[45,13,45,14],[36,13,36,14],[39,5,39,6],[39,7,39,8],[39,9,39,10],[39,11,39,12],[39,13,39,14],[30,11,30,12],[30,13,30,14],[33,5,33,6],[33,7,33,8],[33,9,33,10],[33,11,33,12],[33,13,33,14],[24,5,24,6],[24,7,24,8],[24,9,24,10],[24,11,24,12],[24,13,24,14],[27,5,27,6],[27,7,27,8],[27,9,27,10],[27,11,27,12],[27,13,27,14],[18,5,18,6],[18,7,18,8],[18,9,18,10],[18,11,18,12],[18,13,18,14],[21,5,21,6],[21,7,21,8],[21,9,21,10],[21,11,21,12],[21,13,21,14],[12,5,12,6],[12,7,12,8],[12,9,12,10],[12,11,12,12],[12,13,12,14],[15,5,15,6],[15,7,15,8],[15,9,15,10],[15,11,15,12],[15,13,15,14]]}